{"text_format":"3","workbook":"xlsx","n_sheets":4,"sheets":["Pelacak Skor","Kinerja Anda","Pengaturan","Perhitungan"],"not_rendered":{"defined_names":3,"comments":1},"read":"whole","date_system":"1900"}

{"sheet":"Pelacak Skor","index":0,"n_rows":14,"n_cols":6,"rows_kept":14}
[null,"Masukkan Skor Anda Di Sini"]
[]
[null,null,"Kelas","Tipe","Deskripsi","Skor"]
[null,null,"Perancis Modern","Pekerjaan Rumah","Sejarah PD II",{"v":0.8,"d":"80%"}]
[null,null,"Pemrograman Java Tingkat Lanjut","UTS",null,{"v":0.75,"d":"75%"}]
[null,null,"Bahasa Spanyol","Pekerjaan Rumah",null,{"v":0.5,"d":"50%"}]
[null,null,"Fisika Teoretis","Pekerjaan Rumah",null,{"v":0.95,"d":"95%"}]
[null,null,"Perancis Modern","Pekerjaan Rumah","Sejarah PD I",{"v":0.9,"d":"90%"}]
[null,null,"Perancis Modern","Pekerjaan Rumah","Halaman 30 - 41",{"v":0.8,"d":"80%"}]
[null,null,"Menulis","Esai","Makalah persuasi",{"v":0.95,"d":"95%"}]
[null,null,"Matematika 1","Pekerjaan Rumah","Halaman 21 & 26",{"v":0.8,"d":"80%"}]
[null,null,"Matematika 2","Pekerjaan Rumah","Halaman 15 & 18",{"v":0.85,"d":"85%"}]
[null,null,"Matematika 1","Pekerjaan Rumah","Halaman 34 - 36",{"v":0.8,"d":"80%"}]
[null,null,"Matematika 2","Kuis",null,{"v":0.95,"d":"95%"}]

{"sheet":"Kinerja Anda","index":1,"n_rows":31,"n_cols":8,"rows_kept":31}
[null,"Kinerja Anda"]
[]
[null,null,"Total"]
[null,null,{"$f":"\"Jam: \"&SUM(tblClasses[Kredit])","v":"Jam: 24"},{"$f":"AVERAGE(D7:D31)","v":{"v":0.8104761904761906,"d":"81%"}},{"$f":"AVERAGE(E7:E31)","v":{"v":2.7142857142857144,"d":"2.71"}},{"$f":"SUM(F7:F31)","v":{"v":2.625,"d":"2.63"}},{"$f":"IFERROR(HLOOKUP(D4,lstGPAMapping,2),\"\")","v":"B-"}]
[]
[null,null,"Kelas","%","IPK","IPK tertimbang","Huruf","Kinerja Keseluruhan"]
[null,null,{"$f":"Perhitungan!C6","v":"Perancis Modern"},{"$f":"Perhitungan!AL6","v":{"v":0.8333333333333334,"d":"83%"}},{"$f":"Perhitungan!AM6","v":{"v":3,"d":"3.00"}},{"$f":"IFERROR(E7*Pengaturan!D9/SUM(tblClasses[Kredit]),\"\")","v":{"v":0.375,"d":"0.38"}},{"$f":"Perhitungan!AN6","v":"B"}]
[null,null,{"$f":"Perhitungan!C7","v":"Fisika Teoretis"},{"$f":"Perhitungan!AL7","v":{"v":0.95,"d":"95%"}},{"$f":"Perhitungan!AM7","v":{"v":4,"d":"4.00"}},{"$f":"IFERROR(E8*Pengaturan!D10/SUM(tblClasses[Kredit]),\"\")","v":{"v":0.5,"d":"0.50"}},{"$f":"Perhitungan!AN7","v":"A"}]
[null,null,{"$f":"Perhitungan!C8","v":"Matematika 1"},{"$f":"Perhitungan!AL8","v":{"v":0.8000000000000002,"d":"80%"}},{"$f":"Perhitungan!AM8","v":2.67},{"$f":"IFERROR(E9*Pengaturan!D11/SUM(tblClasses[Kredit]),\"\")","v":{"v":0.445,"d":"0.45"}},{"$f":"Perhitungan!AN8","v":"B-"}]
[null,null,{"$f":"Perhitungan!C9","v":"Matematika 2"},{"$f":"Perhitungan!AL9","v":{"v":0.89,"d":"89%"}},{"$f":"Perhitungan!AM9","v":3.33},{"$f":"IFERROR(E10*Pengaturan!D12/SUM(tblClasses[Kredit]),\"\")","v":{"v":0.555,"d":"0.56"}},{"$f":"Perhitungan!AN9","v":"B+"}]
[null,null,{"$f":"Perhitungan!C10","v":"Pemrograman Java Tingkat Lanjut"},{"$f":"Perhitungan!AL10","v":{"v":0.7500000000000001,"d":"75%"}},{"$f":"Perhitungan!AM10","v":{"v":2,"d":"2.00"}},{"$f":"IFERROR(E11*Pengaturan!D13/SUM(tblClasses[Kredit]),\"\")","v":{"v":0.4166666666666667,"d":"0.42"}},{"$f":"Perhitungan!AN10","v":"C"}]
[null,null,{"$f":"Perhitungan!C11","v":"Bahasa Spanyol"},{"$f":"Perhitungan!AL11","v":{"v":0.5,"d":"50%"}},{"$f":"Perhitungan!AM11","v":{"v":0,"d":"0.00"}},{"$f":"IFERROR(E12*Pengaturan!D14/SUM(tblClasses[Kredit]),\"\")","v":{"v":0,"d":"0.00"}},{"$f":"Perhitungan!AN11","v":"F"}]
[null,null,{"$f":"Perhitungan!C12","v":"Menulis"},{"$f":"Perhitungan!AL12","v":{"v":0.95,"d":"95%"}},{"$f":"Perhitungan!AM12","v":{"v":4,"d":"4.00"}},{"$f":"IFERROR(E13*Pengaturan!D15/SUM(tblClasses[Kredit]),\"\")","v":{"v":0.3333333333333333,"d":"0.33"}},{"$f":"Perhitungan!AN12","v":"A"}]
[null,null,{"$f":"Perhitungan!C13","v":""},{"$f":"Perhitungan!AL13","v":""},{"$f":"Perhitungan!AM13","v":""},{"$f":"IFERROR(E14*Pengaturan!D16/SUM(tblClasses[Kredit]),\"\")","v":""},{"$f":"Perhitungan!AN13","v":""}]
[null,null,{"$f":"Perhitungan!C14","v":""},{"$f":"Perhitungan!AL14","v":""},{"$f":"Perhitungan!AM14","v":""},{"$f":"IFERROR(E15*Pengaturan!D17/SUM(tblClasses[Kredit]),\"\")","v":""},{"$f":"Perhitungan!AN14","v":""}]
[null,null,{"$f":"Perhitungan!C15","v":""},{"$f":"Perhitungan!AL15","v":""},{"$f":"Perhitungan!AM15","v":""},{"$f":"IFERROR(E16*Pengaturan!D18/SUM(tblClasses[Kredit]),\"\")","v":""},{"$f":"Perhitungan!AN15","v":""}]
[null,null,{"$f":"Perhitungan!C16","v":""},{"$f":"Perhitungan!AL16","v":""},{"$f":"Perhitungan!AM16","v":""},{"$f":"IFERROR(E17*Pengaturan!D19/SUM(tblClasses[Kredit]),\"\")","v":""},{"$f":"Perhitungan!AN16","v":""}]
[null,null,{"$f":"Perhitungan!C17","v":""},{"$f":"Perhitungan!AL17","v":""},{"$f":"Perhitungan!AM17","v":""},{"$f":"IFERROR(E18*Pengaturan!D20/SUM(tblClasses[Kredit]),\"\")","v":""},{"$f":"Perhitungan!AN17","v":""}]
[null,null,{"$f":"Perhitungan!C18","v":""},{"$f":"Perhitungan!AL18","v":""},{"$f":"Perhitungan!AM18","v":""},{"$f":"IFERROR(E19*Pengaturan!D21/SUM(tblClasses[Kredit]),\"\")","v":""},{"$f":"Perhitungan!AN18","v":""}]
[null,null,{"$f":"Perhitungan!C19","v":""},{"$f":"Perhitungan!AL19","v":""},{"$f":"Perhitungan!AM19","v":""},{"$f":"IFERROR(E20*Pengaturan!D22/SUM(tblClasses[Kredit]),\"\")","v":""},{"$f":"Perhitungan!AN19","v":""}]
[null,null,{"$f":"Perhitungan!C20","v":""},{"$f":"Perhitungan!AL20","v":""},{"$f":"Perhitungan!AM20","v":""},{"$f":"IFERROR(E21*Pengaturan!D23/SUM(tblClasses[Kredit]),\"\")","v":""},{"$f":"Perhitungan!AN20","v":""}]
[null,null,{"$f":"Perhitungan!C21","v":""},{"$f":"Perhitungan!AL21","v":""},{"$f":"Perhitungan!AM21","v":""},{"$f":"IFERROR(E22*Pengaturan!D24/SUM(tblClasses[Kredit]),\"\")","v":""},{"$f":"Perhitungan!AN21","v":""}]
[null,null,{"$f":"Perhitungan!C22","v":""},{"$f":"Perhitungan!AL22","v":""},{"$f":"Perhitungan!AM22","v":""},{"$f":"IFERROR(E23*Pengaturan!D25/SUM(tblClasses[Kredit]),\"\")","v":""},{"$f":"Perhitungan!AN22","v":""}]
[null,null,{"$f":"Perhitungan!C23","v":""},{"$f":"Perhitungan!AL23","v":""},{"$f":"Perhitungan!AM23","v":""},{"$f":"IFERROR(E24*Pengaturan!D26/SUM(tblClasses[Kredit]),\"\")","v":""},{"$f":"Perhitungan!AN23","v":""}]
[null,null,{"$f":"Perhitungan!C24","v":""},{"$f":"Perhitungan!AL24","v":""},{"$f":"Perhitungan!AM24","v":""},{"$f":"IFERROR(E25*Pengaturan!D27/SUM(tblClasses[Kredit]),\"\")","v":""},{"$f":"Perhitungan!AN24","v":""}]
[null,null,{"$f":"Perhitungan!C25","v":""},{"$f":"Perhitungan!AL25","v":""},{"$f":"Perhitungan!AM25","v":""},{"$f":"IFERROR(E26*Pengaturan!D28/SUM(tblClasses[Kredit]),\"\")","v":""},{"$f":"Perhitungan!AN25","v":""}]
[null,null,{"$f":"Perhitungan!C26","v":""},{"$f":"Perhitungan!AL26","v":""},{"$f":"Perhitungan!AM26","v":""},{"$f":"IFERROR(E27*Pengaturan!D29/SUM(tblClasses[Kredit]),\"\")","v":""},{"$f":"Perhitungan!AN26","v":""}]
[null,null,{"$f":"Perhitungan!C27","v":""},{"$f":"Perhitungan!AL27","v":""},{"$f":"Perhitungan!AM27","v":""},{"$f":"IFERROR(E28*Pengaturan!D30/SUM(tblClasses[Kredit]),\"\")","v":""},{"$f":"Perhitungan!AN27","v":""}]
[null,null,{"$f":"Perhitungan!C28","v":""},{"$f":"Perhitungan!AL28","v":""},{"$f":"Perhitungan!AM28","v":""},{"$f":"IFERROR(E29*Pengaturan!D31/SUM(tblClasses[Kredit]),\"\")","v":""},{"$f":"Perhitungan!AN28","v":""}]
[null,null,{"$f":"Perhitungan!C29","v":""},{"$f":"Perhitungan!AL29","v":""},{"$f":"Perhitungan!AM29","v":""},{"$f":"IFERROR(E30*Pengaturan!D32/SUM(tblClasses[Kredit]),\"\")","v":""},{"$f":"Perhitungan!AN29","v":""}]
[null,null,{"$f":"Perhitungan!C30","v":""},{"$f":"Perhitungan!AL30","v":""},{"$f":"Perhitungan!AM30","v":""},{"$f":"IFERROR(E31*Pengaturan!D33/SUM(tblClasses[Kredit]),\"\")","v":""},{"$f":"Perhitungan!AN30","v":""}]

{"sheet":"Pengaturan","index":2,"n_rows":15,"n_cols":16,"rows_kept":15,"merged":[[5,2,5,15]]}
[null,"Pengaturan"]
[null,null,"Pemetaan skor dan IPK"]
[null,null,"Persentase",{"v":0,"d":"0%"},{"v":0.6,"d":"60%"},{"v":0.63,"d":"63%"},{"v":0.67,"d":"67%"},{"v":0.7,"d":"70%"},{"v":0.73,"d":"73%"},{"v":0.77,"d":"77%"},{"v":0.8,"d":"80%"},{"v":0.83,"d":"83%"},{"v":0.87,"d":"87%"},{"v":0.9,"d":"90%"},{"v":0.93,"d":"93%"},{"v":0.97,"d":"97%"}]
[null,null,"Nilai Huruf","F","D-","D","D+","C-","C","C+","B-","B","B+","A-","A","A+"]
[null,null,"IPK",0,0.67,1,1.33,1.67,2,2.33,2.67,3,3.33,3.67,4,4]
[]
[null,null,"Skor tertimbang hingga 25 kelas"]
[null,null,"Kelas yang Anda ambil","Kredit","Pekerjaan Rumah","Esai","Kuis","Proyek","UTS","Ujian Akhir","Lainnya","% Total"]
[null,null,"Perancis Modern",{"v":3,"d":"3.0"},{"v":0.1,"d":"10%"},{"v":0.15,"d":"15%"},{"v":0.15,"d":"15%"},{"v":0.1,"d":"10%"},{"v":0.2,"d":"20%"},{"v":0.3,"d":"30%"},null,{"$f":"SUM(tblClasses[[#This Row],[Pekerjaan Rumah]:[Lainnya]])","v":{"v":1,"d":"100%"}}]
[null,null,"Fisika Teoretis",{"v":3,"d":"3.0"},{"v":0.15,"d":"15%"},{"v":0.15,"d":"15%"},{"v":0.1,"d":"10%"},{"v":0.1,"d":"10%"},{"v":0.15,"d":"15%"},{"v":0.3,"d":"30%"},{"v":0.05,"d":"5%"},{"$f":"SUM(tblClasses[[#This Row],[Pekerjaan Rumah]:[Lainnya]])","v":{"v":1,"d":"100%"}}]
[null,null,"Matematika 1",{"v":4,"d":"4.0"},{"v":0.1,"d":"10%"},{"v":0.15,"d":"15%"},{"v":0.15,"d":"15%"},{"v":0.1,"d":"10%"},{"v":0.2,"d":"20%"},{"v":0.3,"d":"30%"},null,{"$f":"SUM(tblClasses[[#This Row],[Pekerjaan Rumah]:[Lainnya]])","v":{"v":1,"d":"100%"}}]
[null,null,"Matematika 2",{"v":4,"d":"4.0"},{"v":0.15,"d":"15%"},{"v":0.15,"d":"15%"},{"v":0.1,"d":"10%"},{"v":0.1,"d":"10%"},{"v":0.15,"d":"15%"},{"v":0.3,"d":"30%"},{"v":0.05,"d":"5%"},{"$f":"SUM(tblClasses[[#This Row],[Pekerjaan Rumah]:[Lainnya]])","v":{"v":1,"d":"100%"}}]
[null,null,"Pemrograman Java Tingkat Lanjut",{"v":5,"d":"5.0"},{"v":0.15,"d":"15%"},{"v":0.15,"d":"15%"},{"v":0.1,"d":"10%"},{"v":0.1,"d":"10%"},{"v":0.2,"d":"20%"},{"v":0.3,"d":"30%"},null,{"$f":"SUM(tblClasses[[#This Row],[Pekerjaan Rumah]:[Lainnya]])","v":{"v":1,"d":"100%"}}]
[null,null,"Bahasa Spanyol",{"v":3,"d":"3.0"},{"v":0.1,"d":"10%"},{"v":0.15,"d":"15%"},{"v":0.17,"d":"17%"},{"v":0.13,"d":"13%"},{"v":0.2,"d":"20%"},{"v":0.2,"d":"20%"},{"v":0.05,"d":"5%"},{"$f":"SUM(tblClasses[[#This Row],[Pekerjaan Rumah]:[Lainnya]])","v":{"v":1,"d":"100%"}}]
[null,null,"Menulis",{"v":2,"d":"2.0"},{"v":0.15,"d":"15%"},{"v":0.15,"d":"15%"},{"v":0.12,"d":"12%"},{"v":0.15,"d":"15%"},{"v":0.15,"d":"15%"},{"v":0.25,"d":"25%"},{"v":0.03,"d":"3%"},{"$f":"SUM(tblClasses[[#This Row],[Pekerjaan Rumah]:[Lainnya]])","v":{"v":1,"d":"100%"}}]

{"sheet":"Perhitungan","index":3,"n_rows":657,"n_cols":40,"rows_kept":657,"hidden":true}
[null,"Perhitungan"]
[null,null,"Lembar kerja ini menyediakan perhitungan untuk nilai & IPK Anda dan harus tetap tersembunyi. Perubahan apa pun pada lembar ini dapat mengakibatkan kesalahan."]
[]
[null,null,"Daftar Kelas Saat Ini","Skor (dari 1)",{"$nulls":24},"Perhitungan Nilai"]
[null,null,"Kelas",1,2,3,4,5,6,7,8,9,10,11,12,13,14,15,16,17,18,19,20,21,22,23,24,25,{"$f":"tblClasses[[#Headers],[Pekerjaan Rumah]]","v":"Pekerjaan Rumah"},{"$f":"tblClasses[[#Headers],[Esai]]","v":"Esai"},{"$f":"tblClasses[[#Headers],[Kuis]]","v":"Kuis"},{"$f":"tblClasses[[#Headers],[Proyek]]","v":"Proyek"},{"$f":"tblClasses[[#Headers],[UTS]]","v":"UTS"},{"$f":"tblClasses[[#Headers],[Ujian Akhir]]","v":"Ujian Akhir"},{"$f":"tblClasses[[#Headers],[Lainnya]]","v":"Lainnya"},"Total","Total Nilai Maksimum","Total %","Indeks Prestasi","Nilai Huruf"]
[null,null,{"$f":"IF(Pengaturan!C9=\"\",\"\",Pengaturan!C9)","v":"Perancis Modern"},{"$f":"IFERROR(INDEX(tblClassScores[],MATCH($C6:$C30&D$5:AB$5,Perhitungan!$C$33:$C$657,0),4),\"\")","v":{"v":0.8,"d":"80%"}},{"v":0.9,"d":"90%"},{"v":0.8,"d":"80%"},"","","","","","","","","","","","","","","","","","","","","","",{"$f":"IFERROR(AVERAGEIFS(tblClassScores[Skor],tblClassScores[Kelas],Perhitungan!$C6,tblClassScores[Tipe],Perhitungan!AC$5)*Pengaturan!E9,\"\")","v":0.08333333333333334},{"$f":"IFERROR(AVERAGEIFS(tblClassScores[Skor],tblClassScores[Kelas],Perhitungan!$C6,tblClassScores[Tipe],Perhitungan!AD$5)*Pengaturan!F9,\"\")","v":""},{"$f":"IFERROR(AVERAGEIFS(tblClassScores[Skor],tblClassScores[Kelas],Perhitungan!$C6,tblClassScores[Tipe],Perhitungan!AE$5)*Pengaturan!G9,\"\")","v":""},{"$f":"IFERROR(AVERAGEIFS(tblClassScores[Skor],tblClassScores[Kelas],Perhitungan!$C6,tblClassScores[Tipe],Perhitungan!AF$5)*Pengaturan!H9,\"\")","v":""},{"$f":"IFERROR(AVERAGEIFS(tblClassScores[Skor],tblClassScores[Kelas],Perhitungan!$C6,tblClassScores[Tipe],Perhitungan!AG$5)*Pengaturan!I9,\"\")","v":""},{"$f":"IFERROR(AVERAGEIFS(tblClassScores[Skor],tblClassScores[Kelas],Perhitungan!$C6,tblClassScores[Tipe],Perhitungan!AH$5)*Pengaturan!J9,\"\")","v":""},{"$f":"IFERROR(AVERAGEIFS(tblClassScores[Skor],tblClassScores[Kelas],Perhitungan!$C6,tblClassScores[Tipe],Perhitungan!AI$5)*Pengaturan!K9,\"\")","v":""},{"$f":"SUM(AC6:AI6)","v":0.08333333333333334},{"$f":"SUMIFS(Pengaturan!E9:K9,Perhitungan!AC6:AI6,\">0\")","v":0.1},{"$f":"IFERROR(AJ6/AK6,\"\")","v":{"v":0.8333333333333334,"d":"83%"}},{"$f":"IFERROR(HLOOKUP(AL6,lstGPAMapping,3),\"\")","v":3},{"$f":"IFERROR(HLOOKUP(AL6,lstGPAMapping,2),\"\")","v":"B"}]
[null,null,{"$f":"IF(Pengaturan!C10=\"\",\"\",Pengaturan!C10)","v":"Fisika Teoretis"},{"v":0.95,"d":"95%"},"","","","","","","","","","","","","","","","","","","","","","","","",{"$f":"IFERROR(AVERAGEIFS(tblClassScores[Skor],tblClassScores[Kelas],Perhitungan!$C7,tblClassScores[Tipe],Perhitungan!AC$5)*Pengaturan!E10,\"\")","v":0.1425},{"$f":"IFERROR(AVERAGEIFS(tblClassScores[Skor],tblClassScores[Kelas],Perhitungan!$C7,tblClassScores[Tipe],Perhitungan!AD$5)*Pengaturan!F10,\"\")","v":""},{"$f":"IFERROR(AVERAGEIFS(tblClassScores[Skor],tblClassScores[Kelas],Perhitungan!$C7,tblClassScores[Tipe],Perhitungan!AE$5)*Pengaturan!G10,\"\")","v":""},{"$f":"IFERROR(AVERAGEIFS(tblClassScores[Skor],tblClassScores[Kelas],Perhitungan!$C7,tblClassScores[Tipe],Perhitungan!AF$5)*Pengaturan!H10,\"\")","v":""},{"$f":"IFERROR(AVERAGEIFS(tblClassScores[Skor],tblClassScores[Kelas],Perhitungan!$C7,tblClassScores[Tipe],Perhitungan!AG$5)*Pengaturan!I10,\"\")","v":""},{"$f":"IFERROR(AVERAGEIFS(tblClassScores[Skor],tblClassScores[Kelas],Perhitungan!$C7,tblClassScores[Tipe],Perhitungan!AH$5)*Pengaturan!J10,\"\")","v":""},{"$f":"IFERROR(AVERAGEIFS(tblClassScores[Skor],tblClassScores[Kelas],Perhitungan!$C7,tblClassScores[Tipe],Perhitungan!AI$5)*Pengaturan!K10,\"\")","v":""},{"$f":"SUM(AC7:AI7)","v":0.1425},{"$f":"SUMIFS(Pengaturan!E10:K10,Perhitungan!AC7:AI7,\">0\")","v":0.15},{"$f":"IFERROR(AJ7/AK7,\"\")","v":{"v":0.95,"d":"95%"}},4,"A"]
[null,null,{"$f":"IF(Pengaturan!C11=\"\",\"\",Pengaturan!C11)","v":"Matematika 1"},{"v":0.8,"d":"80%"},{"v":0.8,"d":"80%"},"","","","","","","","","","","","","","","","","","","","","","","",{"$f":"IFERROR(AVERAGEIFS(tblClassScores[Skor],tblClassScores[Kelas],Perhitungan!$C8,tblClassScores[Tipe],Perhitungan!AC$5)*Pengaturan!E11,\"\")","v":0.08000000000000002},{"$f":"IFERROR(AVERAGEIFS(tblClassScores[Skor],tblClassScores[Kelas],Perhitungan!$C8,tblClassScores[Tipe],Perhitungan!AD$5)*Pengaturan!F11,\"\")","v":""},{"$f":"IFERROR(AVERAGEIFS(tblClassScores[Skor],tblClassScores[Kelas],Perhitungan!$C8,tblClassScores[Tipe],Perhitungan!AE$5)*Pengaturan!G11,\"\")","v":""},{"$f":"IFERROR(AVERAGEIFS(tblClassScores[Skor],tblClassScores[Kelas],Perhitungan!$C8,tblClassScores[Tipe],Perhitungan!AF$5)*Pengaturan!H11,\"\")","v":""},{"$f":"IFERROR(AVERAGEIFS(tblClassScores[Skor],tblClassScores[Kelas],Perhitungan!$C8,tblClassScores[Tipe],Perhitungan!AG$5)*Pengaturan!I11,\"\")","v":""},{"$f":"IFERROR(AVERAGEIFS(tblClassScores[Skor],tblClassScores[Kelas],Perhitungan!$C8,tblClassScores[Tipe],Perhitungan!AH$5)*Pengaturan!J11,\"\")","v":""},{"$f":"IFERROR(AVERAGEIFS(tblClassScores[Skor],tblClassScores[Kelas],Perhitungan!$C8,tblClassScores[Tipe],Perhitungan!AI$5)*Pengaturan!K11,\"\")","v":""},0.08000000000000002,{"$f":"SUMIFS(Pengaturan!E11:K11,Perhitungan!AC8:AI8,\">0\")","v":0.1},{"v":0.8000000000000002,"d":"80%"},2.67,"B-"]
[null,null,{"$f":"IF(Pengaturan!C12=\"\",\"\",Pengaturan!C12)","v":"Matematika 2"},{"v":0.85,"d":"85%"},{"v":0.95,"d":"95%"},"","","","","","","","","","","","","","","","","","","","","","","",{"$f":"IFERROR(AVERAGEIFS(tblClassScores[Skor],tblClassScores[Kelas],Perhitungan!$C9,tblClassScores[Tipe],Perhitungan!AC$5)*Pengaturan!E12,\"\")","v":0.1275},{"$f":"IFERROR(AVERAGEIFS(tblClassScores[Skor],tblClassScores[Kelas],Perhitungan!$C9,tblClassScores[Tipe],Perhitungan!AD$5)*Pengaturan!F12,\"\")","v":""},{"$f":"IFERROR(AVERAGEIFS(tblClassScores[Skor],tblClassScores[Kelas],Perhitungan!$C9,tblClassScores[Tipe],Perhitungan!AE$5)*Pengaturan!G12,\"\")","v":0.095},{"$f":"IFERROR(AVERAGEIFS(tblClassScores[Skor],tblClassScores[Kelas],Perhitungan!$C9,tblClassScores[Tipe],Perhitungan!AF$5)*Pengaturan!H12,\"\")","v":""},{"$f":"IFERROR(AVERAGEIFS(tblClassScores[Skor],tblClassScores[Kelas],Perhitungan!$C9,tblClassScores[Tipe],Perhitungan!AG$5)*Pengaturan!I12,\"\")","v":""},{"$f":"IFERROR(AVERAGEIFS(tblClassScores[Skor],tblClassScores[Kelas],Perhitungan!$C9,tblClassScores[Tipe],Perhitungan!AH$5)*Pengaturan!J12,\"\")","v":""},{"$f":"IFERROR(AVERAGEIFS(tblClassScores[Skor],tblClassScores[Kelas],Perhitungan!$C9,tblClassScores[Tipe],Perhitungan!AI$5)*Pengaturan!K12,\"\")","v":""},0.2225,{"$f":"SUMIFS(Pengaturan!E12:K12,Perhitungan!AC9:AI9,\">0\")","v":0.25},{"v":0.89,"d":"89%"},3.33,"B+"]
[null,null,{"$f":"IF(Pengaturan!C13=\"\",\"\",Pengaturan!C13)","v":"Pemrograman Java Tingkat Lanjut"},{"v":0.75,"d":"75%"},"","","","","","","","","","","","","","","","","","","","","","","","",{"$f":"IFERROR(AVERAGEIFS(tblClassScores[Skor],tblClassScores[Kelas],Perhitungan!$C10,tblClassScores[Tipe],Perhitungan!AC$5)*Pengaturan!E13,\"\")","v":""},{"$f":"IFERROR(AVERAGEIFS(tblClassScores[Skor],tblClassScores[Kelas],Perhitungan!$C10,tblClassScores[Tipe],Perhitungan!AD$5)*Pengaturan!F13,\"\")","v":""},{"$f":"IFERROR(AVERAGEIFS(tblClassScores[Skor],tblClassScores[Kelas],Perhitungan!$C10,tblClassScores[Tipe],Perhitungan!AE$5)*Pengaturan!G13,\"\")","v":""},{"$f":"IFERROR(AVERAGEIFS(tblClassScores[Skor],tblClassScores[Kelas],Perhitungan!$C10,tblClassScores[Tipe],Perhitungan!AF$5)*Pengaturan!H13,\"\")","v":""},{"$f":"IFERROR(AVERAGEIFS(tblClassScores[Skor],tblClassScores[Kelas],Perhitungan!$C10,tblClassScores[Tipe],Perhitungan!AG$5)*Pengaturan!I13,\"\")","v":0.15000000000000002},{"$f":"IFERROR(AVERAGEIFS(tblClassScores[Skor],tblClassScores[Kelas],Perhitungan!$C10,tblClassScores[Tipe],Perhitungan!AH$5)*Pengaturan!J13,\"\")","v":""},{"$f":"IFERROR(AVERAGEIFS(tblClassScores[Skor],tblClassScores[Kelas],Perhitungan!$C10,tblClassScores[Tipe],Perhitungan!AI$5)*Pengaturan!K13,\"\")","v":""},0.15000000000000002,{"$f":"SUMIFS(Pengaturan!E13:K13,Perhitungan!AC10:AI10,\">0\")","v":0.2},{"v":0.7500000000000001,"d":"75%"},2,"C"]
[null,null,{"$f":"IF(Pengaturan!C14=\"\",\"\",Pengaturan!C14)","v":"Bahasa Spanyol"},{"v":0.5,"d":"50%"},"","","","","","","","","","","","","","","","","","","","","","","","",{"$f":"IFERROR(AVERAGEIFS(tblClassScores[Skor],tblClassScores[Kelas],Perhitungan!$C11,tblClassScores[Tipe],Perhitungan!AC$5)*Pengaturan!E14,\"\")","v":0.05},{"$f":"IFERROR(AVERAGEIFS(tblClassScores[Skor],tblClassScores[Kelas],Perhitungan!$C11,tblClassScores[Tipe],Perhitungan!AD$5)*Pengaturan!F14,\"\")","v":""},{"$f":"IFERROR(AVERAGEIFS(tblClassScores[Skor],tblClassScores[Kelas],Perhitungan!$C11,tblClassScores[Tipe],Perhitungan!AE$5)*Pengaturan!G14,\"\")","v":""},{"$f":"IFERROR(AVERAGEIFS(tblClassScores[Skor],tblClassScores[Kelas],Perhitungan!$C11,tblClassScores[Tipe],Perhitungan!AF$5)*Pengaturan!H14,\"\")","v":""},{"$f":"IFERROR(AVERAGEIFS(tblClassScores[Skor],tblClassScores[Kelas],Perhitungan!$C11,tblClassScores[Tipe],Perhitungan!AG$5)*Pengaturan!I14,\"\")","v":""},{"$f":"IFERROR(AVERAGEIFS(tblClassScores[Skor],tblClassScores[Kelas],Perhitungan!$C11,tblClassScores[Tipe],Perhitungan!AH$5)*Pengaturan!J14,\"\")","v":""},{"$f":"IFERROR(AVERAGEIFS(tblClassScores[Skor],tblClassScores[Kelas],Perhitungan!$C11,tblClassScores[Tipe],Perhitungan!AI$5)*Pengaturan!K14,\"\")","v":""},0.05,{"$f":"SUMIFS(Pengaturan!E14:K14,Perhitungan!AC11:AI11,\">0\")","v":0.1},{"v":0.5,"d":"50%"},0,"F"]
[null,null,{"$f":"IF(Pengaturan!C15=\"\",\"\",Pengaturan!C15)","v":"Menulis"},{"v":0.95,"d":"95%"},"","","","","","","","","","","","","","","","","","","","","","","","",{"$f":"IFERROR(AVERAGEIFS(tblClassScores[Skor],tblClassScores[Kelas],Perhitungan!$C12,tblClassScores[Tipe],Perhitungan!AC$5)*Pengaturan!E15,\"\")","v":""},{"$f":"IFERROR(AVERAGEIFS(tblClassScores[Skor],tblClassScores[Kelas],Perhitungan!$C12,tblClassScores[Tipe],Perhitungan!AD$5)*Pengaturan!F15,\"\")","v":0.1425},{"$f":"IFERROR(AVERAGEIFS(tblClassScores[Skor],tblClassScores[Kelas],Perhitungan!$C12,tblClassScores[Tipe],Perhitungan!AE$5)*Pengaturan!G15,\"\")","v":""},{"$f":"IFERROR(AVERAGEIFS(tblClassScores[Skor],tblClassScores[Kelas],Perhitungan!$C12,tblClassScores[Tipe],Perhitungan!AF$5)*Pengaturan!H15,\"\")","v":""},{"$f":"IFERROR(AVERAGEIFS(tblClassScores[Skor],tblClassScores[Kelas],Perhitungan!$C12,tblClassScores[Tipe],Perhitungan!AG$5)*Pengaturan!I15,\"\")","v":""},{"$f":"IFERROR(AVERAGEIFS(tblClassScores[Skor],tblClassScores[Kelas],Perhitungan!$C12,tblClassScores[Tipe],Perhitungan!AH$5)*Pengaturan!J15,\"\")","v":""},{"$f":"IFERROR(AVERAGEIFS(tblClassScores[Skor],tblClassScores[Kelas],Perhitungan!$C12,tblClassScores[Tipe],Perhitungan!AI$5)*Pengaturan!K15,\"\")","v":""},0.1425,{"$f":"SUMIFS(Pengaturan!E15:K15,Perhitungan!AC12:AI12,\">0\")","v":0.15},{"v":0.95,"d":"95%"},4,"A"]
[null,null,{"$f":"IF(Pengaturan!C16=\"\",\"\",Pengaturan!C16)","v":""},"","","","","","","","","","","","","","","","","","","","","","","","","",{"$f":"IFERROR(AVERAGEIFS(tblClassScores[Skor],tblClassScores[Kelas],Perhitungan!$C13,tblClassScores[Tipe],Perhitungan!AC$5)*Pengaturan!#REF!,\"\")","v":""},{"$f":"IFERROR(AVERAGEIFS(tblClassScores[Skor],tblClassScores[Kelas],Perhitungan!$C13,tblClassScores[Tipe],Perhitungan!AD$5)*Pengaturan!#REF!,\"\")","v":""},{"$f":"IFERROR(AVERAGEIFS(tblClassScores[Skor],tblClassScores[Kelas],Perhitungan!$C13,tblClassScores[Tipe],Perhitungan!AE$5)*Pengaturan!#REF!,\"\")","v":""},{"$f":"IFERROR(AVERAGEIFS(tblClassScores[Skor],tblClassScores[Kelas],Perhitungan!$C13,tblClassScores[Tipe],Perhitungan!AF$5)*Pengaturan!#REF!,\"\")","v":""},{"$f":"IFERROR(AVERAGEIFS(tblClassScores[Skor],tblClassScores[Kelas],Perhitungan!$C13,tblClassScores[Tipe],Perhitungan!AG$5)*Pengaturan!#REF!,\"\")","v":""},{"$f":"IFERROR(AVERAGEIFS(tblClassScores[Skor],tblClassScores[Kelas],Perhitungan!$C13,tblClassScores[Tipe],Perhitungan!AH$5)*Pengaturan!#REF!,\"\")","v":""},{"$f":"IFERROR(AVERAGEIFS(tblClassScores[Skor],tblClassScores[Kelas],Perhitungan!$C13,tblClassScores[Tipe],Perhitungan!AI$5)*Pengaturan!#REF!,\"\")","v":""},0,{"$f":"SUMIFS(Pengaturan!E16:K16,Perhitungan!AC13:AI13,\">0\")","v":0},"","",""]
[null,null,{"$f":"IF(Pengaturan!C17=\"\",\"\",Pengaturan!C17)","v":""},"","","","","","","","","","","","","","","","","","","","","","","","","",{"$f":"IFERROR(AVERAGEIFS(tblClassScores[Skor],tblClassScores[Kelas],Perhitungan!$C14,tblClassScores[Tipe],Perhitungan!AC$5)*Pengaturan!#REF!,\"\")","v":""},{"$f":"IFERROR(AVERAGEIFS(tblClassScores[Skor],tblClassScores[Kelas],Perhitungan!$C14,tblClassScores[Tipe],Perhitungan!AD$5)*Pengaturan!#REF!,\"\")","v":""},{"$f":"IFERROR(AVERAGEIFS(tblClassScores[Skor],tblClassScores[Kelas],Perhitungan!$C14,tblClassScores[Tipe],Perhitungan!AE$5)*Pengaturan!#REF!,\"\")","v":""},{"$f":"IFERROR(AVERAGEIFS(tblClassScores[Skor],tblClassScores[Kelas],Perhitungan!$C14,tblClassScores[Tipe],Perhitungan!AF$5)*Pengaturan!#REF!,\"\")","v":""},{"$f":"IFERROR(AVERAGEIFS(tblClassScores[Skor],tblClassScores[Kelas],Perhitungan!$C14,tblClassScores[Tipe],Perhitungan!AG$5)*Pengaturan!#REF!,\"\")","v":""},{"$f":"IFERROR(AVERAGEIFS(tblClassScores[Skor],tblClassScores[Kelas],Perhitungan!$C14,tblClassScores[Tipe],Perhitungan!AH$5)*Pengaturan!#REF!,\"\")","v":""},{"$f":"IFERROR(AVERAGEIFS(tblClassScores[Skor],tblClassScores[Kelas],Perhitungan!$C14,tblClassScores[Tipe],Perhitungan!AI$5)*Pengaturan!#REF!,\"\")","v":""},0,{"$f":"SUMIFS(Pengaturan!E17:K17,Perhitungan!AC14:AI14,\">0\")","v":0},"","",""]
[null,null,{"$f":"IF(Pengaturan!C18=\"\",\"\",Pengaturan!C18)","v":""},"","","","","","","","","","","","","","","","","","","","","","","","","",{"$f":"IFERROR(AVERAGEIFS(tblClassScores[Skor],tblClassScores[Kelas],Perhitungan!$C15,tblClassScores[Tipe],Perhitungan!AC$5)*Pengaturan!#REF!,\"\")","v":""},{"$f":"IFERROR(AVERAGEIFS(tblClassScores[Skor],tblClassScores[Kelas],Perhitungan!$C15,tblClassScores[Tipe],Perhitungan!AD$5)*Pengaturan!#REF!,\"\")","v":""},{"$f":"IFERROR(AVERAGEIFS(tblClassScores[Skor],tblClassScores[Kelas],Perhitungan!$C15,tblClassScores[Tipe],Perhitungan!AE$5)*Pengaturan!#REF!,\"\")","v":""},{"$f":"IFERROR(AVERAGEIFS(tblClassScores[Skor],tblClassScores[Kelas],Perhitungan!$C15,tblClassScores[Tipe],Perhitungan!AF$5)*Pengaturan!#REF!,\"\")","v":""},{"$f":"IFERROR(AVERAGEIFS(tblClassScores[Skor],tblClassScores[Kelas],Perhitungan!$C15,tblClassScores[Tipe],Perhitungan!AG$5)*Pengaturan!#REF!,\"\")","v":""},{"$f":"IFERROR(AVERAGEIFS(tblClassScores[Skor],tblClassScores[Kelas],Perhitungan!$C15,tblClassScores[Tipe],Perhitungan!AH$5)*Pengaturan!#REF!,\"\")","v":""},{"$f":"IFERROR(AVERAGEIFS(tblClassScores[Skor],tblClassScores[Kelas],Perhitungan!$C15,tblClassScores[Tipe],Perhitungan!AI$5)*Pengaturan!#REF!,\"\")","v":""},0,{"$f":"SUMIFS(Pengaturan!E18:K18,Perhitungan!AC15:AI15,\">0\")","v":0},"","",""]
[null,null,{"$f":"IF(Pengaturan!C19=\"\",\"\",Pengaturan!C19)","v":""},"","","","","","","","","","","","","","","","","","","","","","","","","",{"$f":"IFERROR(AVERAGEIFS(tblClassScores[Skor],tblClassScores[Kelas],Perhitungan!$C16,tblClassScores[Tipe],Perhitungan!AC$5)*Pengaturan!#REF!,\"\")","v":""},{"$f":"IFERROR(AVERAGEIFS(tblClassScores[Skor],tblClassScores[Kelas],Perhitungan!$C16,tblClassScores[Tipe],Perhitungan!AD$5)*Pengaturan!#REF!,\"\")","v":""},{"$f":"IFERROR(AVERAGEIFS(tblClassScores[Skor],tblClassScores[Kelas],Perhitungan!$C16,tblClassScores[Tipe],Perhitungan!AE$5)*Pengaturan!#REF!,\"\")","v":""},{"$f":"IFERROR(AVERAGEIFS(tblClassScores[Skor],tblClassScores[Kelas],Perhitungan!$C16,tblClassScores[Tipe],Perhitungan!AF$5)*Pengaturan!#REF!,\"\")","v":""},{"$f":"IFERROR(AVERAGEIFS(tblClassScores[Skor],tblClassScores[Kelas],Perhitungan!$C16,tblClassScores[Tipe],Perhitungan!AG$5)*Pengaturan!#REF!,\"\")","v":""},{"$f":"IFERROR(AVERAGEIFS(tblClassScores[Skor],tblClassScores[Kelas],Perhitungan!$C16,tblClassScores[Tipe],Perhitungan!AH$5)*Pengaturan!#REF!,\"\")","v":""},{"$f":"IFERROR(AVERAGEIFS(tblClassScores[Skor],tblClassScores[Kelas],Perhitungan!$C16,tblClassScores[Tipe],Perhitungan!AI$5)*Pengaturan!#REF!,\"\")","v":""},0,{"$f":"SUMIFS(Pengaturan!E19:K19,Perhitungan!AC16:AI16,\">0\")","v":0},"","",""]
[null,null,{"$f":"IF(Pengaturan!C20=\"\",\"\",Pengaturan!C20)","v":""},"","","","","","","","","","","","","","","","","","","","","","","","","",{"$f":"IFERROR(AVERAGEIFS(tblClassScores[Skor],tblClassScores[Kelas],Perhitungan!$C17,tblClassScores[Tipe],Perhitungan!AC$5)*Pengaturan!#REF!,\"\")","v":""},{"$f":"IFERROR(AVERAGEIFS(tblClassScores[Skor],tblClassScores[Kelas],Perhitungan!$C17,tblClassScores[Tipe],Perhitungan!AD$5)*Pengaturan!#REF!,\"\")","v":""},{"$f":"IFERROR(AVERAGEIFS(tblClassScores[Skor],tblClassScores[Kelas],Perhitungan!$C17,tblClassScores[Tipe],Perhitungan!AE$5)*Pengaturan!#REF!,\"\")","v":""},{"$f":"IFERROR(AVERAGEIFS(tblClassScores[Skor],tblClassScores[Kelas],Perhitungan!$C17,tblClassScores[Tipe],Perhitungan!AF$5)*Pengaturan!#REF!,\"\")","v":""},{"$f":"IFERROR(AVERAGEIFS(tblClassScores[Skor],tblClassScores[Kelas],Perhitungan!$C17,tblClassScores[Tipe],Perhitungan!AG$5)*Pengaturan!#REF!,\"\")","v":""},{"$f":"IFERROR(AVERAGEIFS(tblClassScores[Skor],tblClassScores[Kelas],Perhitungan!$C17,tblClassScores[Tipe],Perhitungan!AH$5)*Pengaturan!#REF!,\"\")","v":""},{"$f":"IFERROR(AVERAGEIFS(tblClassScores[Skor],tblClassScores[Kelas],Perhitungan!$C17,tblClassScores[Tipe],Perhitungan!AI$5)*Pengaturan!#REF!,\"\")","v":""},0,{"$f":"SUMIFS(Pengaturan!E20:K20,Perhitungan!AC17:AI17,\">0\")","v":0},"","",""]
[null,null,{"$f":"IF(Pengaturan!C21=\"\",\"\",Pengaturan!C21)","v":""},"","","","","","","","","","","","","","","","","","","","","","","","","",{"$f":"IFERROR(AVERAGEIFS(tblClassScores[Skor],tblClassScores[Kelas],Perhitungan!$C18,tblClassScores[Tipe],Perhitungan!AC$5)*Pengaturan!#REF!,\"\")","v":""},{"$f":"IFERROR(AVERAGEIFS(tblClassScores[Skor],tblClassScores[Kelas],Perhitungan!$C18,tblClassScores[Tipe],Perhitungan!AD$5)*Pengaturan!#REF!,\"\")","v":""},{"$f":"IFERROR(AVERAGEIFS(tblClassScores[Skor],tblClassScores[Kelas],Perhitungan!$C18,tblClassScores[Tipe],Perhitungan!AE$5)*Pengaturan!#REF!,\"\")","v":""},{"$f":"IFERROR(AVERAGEIFS(tblClassScores[Skor],tblClassScores[Kelas],Perhitungan!$C18,tblClassScores[Tipe],Perhitungan!AF$5)*Pengaturan!#REF!,\"\")","v":""},{"$f":"IFERROR(AVERAGEIFS(tblClassScores[Skor],tblClassScores[Kelas],Perhitungan!$C18,tblClassScores[Tipe],Perhitungan!AG$5)*Pengaturan!#REF!,\"\")","v":""},{"$f":"IFERROR(AVERAGEIFS(tblClassScores[Skor],tblClassScores[Kelas],Perhitungan!$C18,tblClassScores[Tipe],Perhitungan!AH$5)*Pengaturan!#REF!,\"\")","v":""},{"$f":"IFERROR(AVERAGEIFS(tblClassScores[Skor],tblClassScores[Kelas],Perhitungan!$C18,tblClassScores[Tipe],Perhitungan!AI$5)*Pengaturan!#REF!,\"\")","v":""},0,{"$f":"SUMIFS(Pengaturan!E21:K21,Perhitungan!AC18:AI18,\">0\")","v":0},"","",""]
[null,null,{"$f":"IF(Pengaturan!C22=\"\",\"\",Pengaturan!C22)","v":""},"","","","","","","","","","","","","","","","","","","","","","","","","",{"$f":"IFERROR(AVERAGEIFS(tblClassScores[Skor],tblClassScores[Kelas],Perhitungan!$C19,tblClassScores[Tipe],Perhitungan!AC$5)*Pengaturan!#REF!,\"\")","v":""},{"$f":"IFERROR(AVERAGEIFS(tblClassScores[Skor],tblClassScores[Kelas],Perhitungan!$C19,tblClassScores[Tipe],Perhitungan!AD$5)*Pengaturan!#REF!,\"\")","v":""},{"$f":"IFERROR(AVERAGEIFS(tblClassScores[Skor],tblClassScores[Kelas],Perhitungan!$C19,tblClassScores[Tipe],Perhitungan!AE$5)*Pengaturan!#REF!,\"\")","v":""},{"$f":"IFERROR(AVERAGEIFS(tblClassScores[Skor],tblClassScores[Kelas],Perhitungan!$C19,tblClassScores[Tipe],Perhitungan!AF$5)*Pengaturan!#REF!,\"\")","v":""},{"$f":"IFERROR(AVERAGEIFS(tblClassScores[Skor],tblClassScores[Kelas],Perhitungan!$C19,tblClassScores[Tipe],Perhitungan!AG$5)*Pengaturan!#REF!,\"\")","v":""},{"$f":"IFERROR(AVERAGEIFS(tblClassScores[Skor],tblClassScores[Kelas],Perhitungan!$C19,tblClassScores[Tipe],Perhitungan!AH$5)*Pengaturan!#REF!,\"\")","v":""},{"$f":"IFERROR(AVERAGEIFS(tblClassScores[Skor],tblClassScores[Kelas],Perhitungan!$C19,tblClassScores[Tipe],Perhitungan!AI$5)*Pengaturan!#REF!,\"\")","v":""},0,{"$f":"SUMIFS(Pengaturan!E22:K22,Perhitungan!AC19:AI19,\">0\")","v":0},"","",""]
[null,null,{"$f":"IF(Pengaturan!C23=\"\",\"\",Pengaturan!C23)","v":""},"","","","","","","","","","","","","","","","","","","","","","","","","",{"$f":"IFERROR(AVERAGEIFS(tblClassScores[Skor],tblClassScores[Kelas],Perhitungan!$C20,tblClassScores[Tipe],Perhitungan!AC$5)*Pengaturan!#REF!,\"\")","v":""},{"$f":"IFERROR(AVERAGEIFS(tblClassScores[Skor],tblClassScores[Kelas],Perhitungan!$C20,tblClassScores[Tipe],Perhitungan!AD$5)*Pengaturan!#REF!,\"\")","v":""},{"$f":"IFERROR(AVERAGEIFS(tblClassScores[Skor],tblClassScores[Kelas],Perhitungan!$C20,tblClassScores[Tipe],Perhitungan!AE$5)*Pengaturan!#REF!,\"\")","v":""},{"$f":"IFERROR(AVERAGEIFS(tblClassScores[Skor],tblClassScores[Kelas],Perhitungan!$C20,tblClassScores[Tipe],Perhitungan!AF$5)*Pengaturan!#REF!,\"\")","v":""},{"$f":"IFERROR(AVERAGEIFS(tblClassScores[Skor],tblClassScores[Kelas],Perhitungan!$C20,tblClassScores[Tipe],Perhitungan!AG$5)*Pengaturan!#REF!,\"\")","v":""},{"$f":"IFERROR(AVERAGEIFS(tblClassScores[Skor],tblClassScores[Kelas],Perhitungan!$C20,tblClassScores[Tipe],Perhitungan!AH$5)*Pengaturan!#REF!,\"\")","v":""},{"$f":"IFERROR(AVERAGEIFS(tblClassScores[Skor],tblClassScores[Kelas],Perhitungan!$C20,tblClassScores[Tipe],Perhitungan!AI$5)*Pengaturan!#REF!,\"\")","v":""},0,{"$f":"SUMIFS(Pengaturan!E23:K23,Perhitungan!AC20:AI20,\">0\")","v":0},"","",""]
[null,null,{"$f":"IF(Pengaturan!C24=\"\",\"\",Pengaturan!C24)","v":""},"","","","","","","","","","","","","","","","","","","","","","","","","",{"$f":"IFERROR(AVERAGEIFS(tblClassScores[Skor],tblClassScores[Kelas],Perhitungan!$C21,tblClassScores[Tipe],Perhitungan!AC$5)*Pengaturan!#REF!,\"\")","v":""},{"$f":"IFERROR(AVERAGEIFS(tblClassScores[Skor],tblClassScores[Kelas],Perhitungan!$C21,tblClassScores[Tipe],Perhitungan!AD$5)*Pengaturan!#REF!,\"\")","v":""},{"$f":"IFERROR(AVERAGEIFS(tblClassScores[Skor],tblClassScores[Kelas],Perhitungan!$C21,tblClassScores[Tipe],Perhitungan!AE$5)*Pengaturan!#REF!,\"\")","v":""},{"$f":"IFERROR(AVERAGEIFS(tblClassScores[Skor],tblClassScores[Kelas],Perhitungan!$C21,tblClassScores[Tipe],Perhitungan!AF$5)*Pengaturan!#REF!,\"\")","v":""},{"$f":"IFERROR(AVERAGEIFS(tblClassScores[Skor],tblClassScores[Kelas],Perhitungan!$C21,tblClassScores[Tipe],Perhitungan!AG$5)*Pengaturan!#REF!,\"\")","v":""},{"$f":"IFERROR(AVERAGEIFS(tblClassScores[Skor],tblClassScores[Kelas],Perhitungan!$C21,tblClassScores[Tipe],Perhitungan!AH$5)*Pengaturan!#REF!,\"\")","v":""},{"$f":"IFERROR(AVERAGEIFS(tblClassScores[Skor],tblClassScores[Kelas],Perhitungan!$C21,tblClassScores[Tipe],Perhitungan!AI$5)*Pengaturan!#REF!,\"\")","v":""},0,{"$f":"SUMIFS(Pengaturan!E24:K24,Perhitungan!AC21:AI21,\">0\")","v":0},"","",""]
[null,null,{"$f":"IF(Pengaturan!C25=\"\",\"\",Pengaturan!C25)","v":""},"","","","","","","","","","","","","","","","","","","","","","","","","",{"$f":"IFERROR(AVERAGEIFS(tblClassScores[Skor],tblClassScores[Kelas],Perhitungan!$C22,tblClassScores[Tipe],Perhitungan!AC$5)*Pengaturan!#REF!,\"\")","v":""},{"$f":"IFERROR(AVERAGEIFS(tblClassScores[Skor],tblClassScores[Kelas],Perhitungan!$C22,tblClassScores[Tipe],Perhitungan!AD$5)*Pengaturan!#REF!,\"\")","v":""},{"$f":"IFERROR(AVERAGEIFS(tblClassScores[Skor],tblClassScores[Kelas],Perhitungan!$C22,tblClassScores[Tipe],Perhitungan!AE$5)*Pengaturan!#REF!,\"\")","v":""},{"$f":"IFERROR(AVERAGEIFS(tblClassScores[Skor],tblClassScores[Kelas],Perhitungan!$C22,tblClassScores[Tipe],Perhitungan!AF$5)*Pengaturan!#REF!,\"\")","v":""},{"$f":"IFERROR(AVERAGEIFS(tblClassScores[Skor],tblClassScores[Kelas],Perhitungan!$C22,tblClassScores[Tipe],Perhitungan!AG$5)*Pengaturan!#REF!,\"\")","v":""},{"$f":"IFERROR(AVERAGEIFS(tblClassScores[Skor],tblClassScores[Kelas],Perhitungan!$C22,tblClassScores[Tipe],Perhitungan!AH$5)*Pengaturan!#REF!,\"\")","v":""},{"$f":"IFERROR(AVERAGEIFS(tblClassScores[Skor],tblClassScores[Kelas],Perhitungan!$C22,tblClassScores[Tipe],Perhitungan!AI$5)*Pengaturan!#REF!,\"\")","v":""},0,{"$f":"SUMIFS(Pengaturan!E25:K25,Perhitungan!AC22:AI22,\">0\")","v":0},"","",""]
[null,null,{"$f":"IF(Pengaturan!C26=\"\",\"\",Pengaturan!C26)","v":""},"","","","","","","","","","","","","","","","","","","","","","","","","",{"$f":"IFERROR(AVERAGEIFS(tblClassScores[Skor],tblClassScores[Kelas],Perhitungan!$C23,tblClassScores[Tipe],Perhitungan!AC$5)*Pengaturan!#REF!,\"\")","v":""},{"$f":"IFERROR(AVERAGEIFS(tblClassScores[Skor],tblClassScores[Kelas],Perhitungan!$C23,tblClassScores[Tipe],Perhitungan!AD$5)*Pengaturan!#REF!,\"\")","v":""},{"$f":"IFERROR(AVERAGEIFS(tblClassScores[Skor],tblClassScores[Kelas],Perhitungan!$C23,tblClassScores[Tipe],Perhitungan!AE$5)*Pengaturan!#REF!,\"\")","v":""},{"$f":"IFERROR(AVERAGEIFS(tblClassScores[Skor],tblClassScores[Kelas],Perhitungan!$C23,tblClassScores[Tipe],Perhitungan!AF$5)*Pengaturan!#REF!,\"\")","v":""},{"$f":"IFERROR(AVERAGEIFS(tblClassScores[Skor],tblClassScores[Kelas],Perhitungan!$C23,tblClassScores[Tipe],Perhitungan!AG$5)*Pengaturan!#REF!,\"\")","v":""},{"$f":"IFERROR(AVERAGEIFS(tblClassScores[Skor],tblClassScores[Kelas],Perhitungan!$C23,tblClassScores[Tipe],Perhitungan!AH$5)*Pengaturan!#REF!,\"\")","v":""},{"$f":"IFERROR(AVERAGEIFS(tblClassScores[Skor],tblClassScores[Kelas],Perhitungan!$C23,tblClassScores[Tipe],Perhitungan!AI$5)*Pengaturan!#REF!,\"\")","v":""},0,{"$f":"SUMIFS(Pengaturan!E26:K26,Perhitungan!AC23:AI23,\">0\")","v":0},"","",""]
[null,null,{"$f":"IF(Pengaturan!C27=\"\",\"\",Pengaturan!C27)","v":""},"","","","","","","","","","","","","","","","","","","","","","","","","",{"$f":"IFERROR(AVERAGEIFS(tblClassScores[Skor],tblClassScores[Kelas],Perhitungan!$C24,tblClassScores[Tipe],Perhitungan!AC$5)*Pengaturan!#REF!,\"\")","v":""},{"$f":"IFERROR(AVERAGEIFS(tblClassScores[Skor],tblClassScores[Kelas],Perhitungan!$C24,tblClassScores[Tipe],Perhitungan!AD$5)*Pengaturan!#REF!,\"\")","v":""},{"$f":"IFERROR(AVERAGEIFS(tblClassScores[Skor],tblClassScores[Kelas],Perhitungan!$C24,tblClassScores[Tipe],Perhitungan!AE$5)*Pengaturan!#REF!,\"\")","v":""},{"$f":"IFERROR(AVERAGEIFS(tblClassScores[Skor],tblClassScores[Kelas],Perhitungan!$C24,tblClassScores[Tipe],Perhitungan!AF$5)*Pengaturan!#REF!,\"\")","v":""},{"$f":"IFERROR(AVERAGEIFS(tblClassScores[Skor],tblClassScores[Kelas],Perhitungan!$C24,tblClassScores[Tipe],Perhitungan!AG$5)*Pengaturan!#REF!,\"\")","v":""},{"$f":"IFERROR(AVERAGEIFS(tblClassScores[Skor],tblClassScores[Kelas],Perhitungan!$C24,tblClassScores[Tipe],Perhitungan!AH$5)*Pengaturan!#REF!,\"\")","v":""},{"$f":"IFERROR(AVERAGEIFS(tblClassScores[Skor],tblClassScores[Kelas],Perhitungan!$C24,tblClassScores[Tipe],Perhitungan!AI$5)*Pengaturan!#REF!,\"\")","v":""},0,{"$f":"SUMIFS(Pengaturan!E27:K27,Perhitungan!AC24:AI24,\">0\")","v":0},"","",""]
[null,null,{"$f":"IF(Pengaturan!C28=\"\",\"\",Pengaturan!C28)","v":""},"","","","","","","","","","","","","","","","","","","","","","","","","",{"$f":"IFERROR(AVERAGEIFS(tblClassScores[Skor],tblClassScores[Kelas],Perhitungan!$C25,tblClassScores[Tipe],Perhitungan!AC$5)*Pengaturan!#REF!,\"\")","v":""},{"$f":"IFERROR(AVERAGEIFS(tblClassScores[Skor],tblClassScores[Kelas],Perhitungan!$C25,tblClassScores[Tipe],Perhitungan!AD$5)*Pengaturan!#REF!,\"\")","v":""},{"$f":"IFERROR(AVERAGEIFS(tblClassScores[Skor],tblClassScores[Kelas],Perhitungan!$C25,tblClassScores[Tipe],Perhitungan!AE$5)*Pengaturan!#REF!,\"\")","v":""},{"$f":"IFERROR(AVERAGEIFS(tblClassScores[Skor],tblClassScores[Kelas],Perhitungan!$C25,tblClassScores[Tipe],Perhitungan!AF$5)*Pengaturan!#REF!,\"\")","v":""},{"$f":"IFERROR(AVERAGEIFS(tblClassScores[Skor],tblClassScores[Kelas],Perhitungan!$C25,tblClassScores[Tipe],Perhitungan!AG$5)*Pengaturan!#REF!,\"\")","v":""},{"$f":"IFERROR(AVERAGEIFS(tblClassScores[Skor],tblClassScores[Kelas],Perhitungan!$C25,tblClassScores[Tipe],Perhitungan!AH$5)*Pengaturan!#REF!,\"\")","v":""},{"$f":"IFERROR(AVERAGEIFS(tblClassScores[Skor],tblClassScores[Kelas],Perhitungan!$C25,tblClassScores[Tipe],Perhitungan!AI$5)*Pengaturan!#REF!,\"\")","v":""},0,{"$f":"SUMIFS(Pengaturan!E28:K28,Perhitungan!AC25:AI25,\">0\")","v":0},"","",""]
[null,null,{"$f":"IF(Pengaturan!C29=\"\",\"\",Pengaturan!C29)","v":""},"","","","","","","","","","","","","","","","","","","","","","","","","",{"$f":"IFERROR(AVERAGEIFS(tblClassScores[Skor],tblClassScores[Kelas],Perhitungan!$C26,tblClassScores[Tipe],Perhitungan!AC$5)*Pengaturan!#REF!,\"\")","v":""},{"$f":"IFERROR(AVERAGEIFS(tblClassScores[Skor],tblClassScores[Kelas],Perhitungan!$C26,tblClassScores[Tipe],Perhitungan!AD$5)*Pengaturan!#REF!,\"\")","v":""},{"$f":"IFERROR(AVERAGEIFS(tblClassScores[Skor],tblClassScores[Kelas],Perhitungan!$C26,tblClassScores[Tipe],Perhitungan!AE$5)*Pengaturan!#REF!,\"\")","v":""},{"$f":"IFERROR(AVERAGEIFS(tblClassScores[Skor],tblClassScores[Kelas],Perhitungan!$C26,tblClassScores[Tipe],Perhitungan!AF$5)*Pengaturan!#REF!,\"\")","v":""},{"$f":"IFERROR(AVERAGEIFS(tblClassScores[Skor],tblClassScores[Kelas],Perhitungan!$C26,tblClassScores[Tipe],Perhitungan!AG$5)*Pengaturan!#REF!,\"\")","v":""},{"$f":"IFERROR(AVERAGEIFS(tblClassScores[Skor],tblClassScores[Kelas],Perhitungan!$C26,tblClassScores[Tipe],Perhitungan!AH$5)*Pengaturan!#REF!,\"\")","v":""},{"$f":"IFERROR(AVERAGEIFS(tblClassScores[Skor],tblClassScores[Kelas],Perhitungan!$C26,tblClassScores[Tipe],Perhitungan!AI$5)*Pengaturan!#REF!,\"\")","v":""},0,{"$f":"SUMIFS(Pengaturan!E29:K29,Perhitungan!AC26:AI26,\">0\")","v":0},"","",""]
[null,null,{"$f":"IF(Pengaturan!C30=\"\",\"\",Pengaturan!C30)","v":""},"","","","","","","","","","","","","","","","","","","","","","","","","",{"$f":"IFERROR(AVERAGEIFS(tblClassScores[Skor],tblClassScores[Kelas],Perhitungan!$C27,tblClassScores[Tipe],Perhitungan!AC$5)*Pengaturan!#REF!,\"\")","v":""},{"$f":"IFERROR(AVERAGEIFS(tblClassScores[Skor],tblClassScores[Kelas],Perhitungan!$C27,tblClassScores[Tipe],Perhitungan!AD$5)*Pengaturan!#REF!,\"\")","v":""},{"$f":"IFERROR(AVERAGEIFS(tblClassScores[Skor],tblClassScores[Kelas],Perhitungan!$C27,tblClassScores[Tipe],Perhitungan!AE$5)*Pengaturan!#REF!,\"\")","v":""},{"$f":"IFERROR(AVERAGEIFS(tblClassScores[Skor],tblClassScores[Kelas],Perhitungan!$C27,tblClassScores[Tipe],Perhitungan!AF$5)*Pengaturan!#REF!,\"\")","v":""},{"$f":"IFERROR(AVERAGEIFS(tblClassScores[Skor],tblClassScores[Kelas],Perhitungan!$C27,tblClassScores[Tipe],Perhitungan!AG$5)*Pengaturan!#REF!,\"\")","v":""},{"$f":"IFERROR(AVERAGEIFS(tblClassScores[Skor],tblClassScores[Kelas],Perhitungan!$C27,tblClassScores[Tipe],Perhitungan!AH$5)*Pengaturan!#REF!,\"\")","v":""},{"$f":"IFERROR(AVERAGEIFS(tblClassScores[Skor],tblClassScores[Kelas],Perhitungan!$C27,tblClassScores[Tipe],Perhitungan!AI$5)*Pengaturan!#REF!,\"\")","v":""},0,{"$f":"SUMIFS(Pengaturan!E30:K30,Perhitungan!AC27:AI27,\">0\")","v":0},"","",""]
[null,null,{"$f":"IF(Pengaturan!C31=\"\",\"\",Pengaturan!C31)","v":""},"","","","","","","","","","","","","","","","","","","","","","","","","",{"$f":"IFERROR(AVERAGEIFS(tblClassScores[Skor],tblClassScores[Kelas],Perhitungan!$C28,tblClassScores[Tipe],Perhitungan!AC$5)*Pengaturan!#REF!,\"\")","v":""},{"$f":"IFERROR(AVERAGEIFS(tblClassScores[Skor],tblClassScores[Kelas],Perhitungan!$C28,tblClassScores[Tipe],Perhitungan!AD$5)*Pengaturan!#REF!,\"\")","v":""},{"$f":"IFERROR(AVERAGEIFS(tblClassScores[Skor],tblClassScores[Kelas],Perhitungan!$C28,tblClassScores[Tipe],Perhitungan!AE$5)*Pengaturan!#REF!,\"\")","v":""},{"$f":"IFERROR(AVERAGEIFS(tblClassScores[Skor],tblClassScores[Kelas],Perhitungan!$C28,tblClassScores[Tipe],Perhitungan!AF$5)*Pengaturan!#REF!,\"\")","v":""},{"$f":"IFERROR(AVERAGEIFS(tblClassScores[Skor],tblClassScores[Kelas],Perhitungan!$C28,tblClassScores[Tipe],Perhitungan!AG$5)*Pengaturan!#REF!,\"\")","v":""},{"$f":"IFERROR(AVERAGEIFS(tblClassScores[Skor],tblClassScores[Kelas],Perhitungan!$C28,tblClassScores[Tipe],Perhitungan!AH$5)*Pengaturan!#REF!,\"\")","v":""},{"$f":"IFERROR(AVERAGEIFS(tblClassScores[Skor],tblClassScores[Kelas],Perhitungan!$C28,tblClassScores[Tipe],Perhitungan!AI$5)*Pengaturan!#REF!,\"\")","v":""},0,{"$f":"SUMIFS(Pengaturan!E31:K31,Perhitungan!AC28:AI28,\">0\")","v":0},"","",""]
[null,null,{"$f":"IF(Pengaturan!C32=\"\",\"\",Pengaturan!C32)","v":""},"","","","","","","","","","","","","","","","","","","","","","","","","",{"$f":"IFERROR(AVERAGEIFS(tblClassScores[Skor],tblClassScores[Kelas],Perhitungan!$C29,tblClassScores[Tipe],Perhitungan!AC$5)*Pengaturan!#REF!,\"\")","v":""},{"$f":"IFERROR(AVERAGEIFS(tblClassScores[Skor],tblClassScores[Kelas],Perhitungan!$C29,tblClassScores[Tipe],Perhitungan!AD$5)*Pengaturan!#REF!,\"\")","v":""},{"$f":"IFERROR(AVERAGEIFS(tblClassScores[Skor],tblClassScores[Kelas],Perhitungan!$C29,tblClassScores[Tipe],Perhitungan!AE$5)*Pengaturan!#REF!,\"\")","v":""},{"$f":"IFERROR(AVERAGEIFS(tblClassScores[Skor],tblClassScores[Kelas],Perhitungan!$C29,tblClassScores[Tipe],Perhitungan!AF$5)*Pengaturan!#REF!,\"\")","v":""},{"$f":"IFERROR(AVERAGEIFS(tblClassScores[Skor],tblClassScores[Kelas],Perhitungan!$C29,tblClassScores[Tipe],Perhitungan!AG$5)*Pengaturan!#REF!,\"\")","v":""},{"$f":"IFERROR(AVERAGEIFS(tblClassScores[Skor],tblClassScores[Kelas],Perhitungan!$C29,tblClassScores[Tipe],Perhitungan!AH$5)*Pengaturan!#REF!,\"\")","v":""},{"$f":"IFERROR(AVERAGEIFS(tblClassScores[Skor],tblClassScores[Kelas],Perhitungan!$C29,tblClassScores[Tipe],Perhitungan!AI$5)*Pengaturan!#REF!,\"\")","v":""},0,{"$f":"SUMIFS(Pengaturan!E32:K32,Perhitungan!AC29:AI29,\">0\")","v":0},"","",""]
[null,null,{"$f":"IF(Pengaturan!C33=\"\",\"\",Pengaturan!C33)","v":""},"","","","","","","","","","","","","","","","","","","","","","","","","",{"$f":"IFERROR(AVERAGEIFS(tblClassScores[Skor],tblClassScores[Kelas],Perhitungan!$C30,tblClassScores[Tipe],Perhitungan!AC$5)*Pengaturan!#REF!,\"\")","v":""},{"$f":"IFERROR(AVERAGEIFS(tblClassScores[Skor],tblClassScores[Kelas],Perhitungan!$C30,tblClassScores[Tipe],Perhitungan!AD$5)*Pengaturan!#REF!,\"\")","v":""},{"$f":"IFERROR(AVERAGEIFS(tblClassScores[Skor],tblClassScores[Kelas],Perhitungan!$C30,tblClassScores[Tipe],Perhitungan!AE$5)*Pengaturan!#REF!,\"\")","v":""},{"$f":"IFERROR(AVERAGEIFS(tblClassScores[Skor],tblClassScores[Kelas],Perhitungan!$C30,tblClassScores[Tipe],Perhitungan!AF$5)*Pengaturan!#REF!,\"\")","v":""},{"$f":"IFERROR(AVERAGEIFS(tblClassScores[Skor],tblClassScores[Kelas],Perhitungan!$C30,tblClassScores[Tipe],Perhitungan!AG$5)*Pengaturan!#REF!,\"\")","v":""},{"$f":"IFERROR(AVERAGEIFS(tblClassScores[Skor],tblClassScores[Kelas],Perhitungan!$C30,tblClassScores[Tipe],Perhitungan!AH$5)*Pengaturan!#REF!,\"\")","v":""},{"$f":"IFERROR(AVERAGEIFS(tblClassScores[Skor],tblClassScores[Kelas],Perhitungan!$C30,tblClassScores[Tipe],Perhitungan!AI$5)*Pengaturan!#REF!,\"\")","v":""},0,{"$f":"SUMIFS(Pengaturan!E33:K33,Perhitungan!AC30:AI30,\">0\")","v":0},"","",""]
[]
[]
[null,1,{"$f":"'Pelacak Skor'!C4&COUNTIF('Pelacak Skor'!$C$4:C4,'Pelacak Skor'!C4)","v":"Perancis Modern1"}]
[null,2,{"$f":"'Pelacak Skor'!C5&COUNTIF('Pelacak Skor'!$C$4:C5,'Pelacak Skor'!C5)","v":"Pemrograman Java Tingkat Lanjut1"}]
[null,3,{"$f":"'Pelacak Skor'!C6&COUNTIF('Pelacak Skor'!$C$4:C6,'Pelacak Skor'!C6)","v":"Bahasa Spanyol1"}]
[null,4,{"$f":"'Pelacak Skor'!C7&COUNTIF('Pelacak Skor'!$C$4:C7,'Pelacak Skor'!C7)","v":"Fisika Teoretis1"}]
[null,5,{"$f":"'Pelacak Skor'!C8&COUNTIF('Pelacak Skor'!$C$4:C8,'Pelacak Skor'!C8)","v":"Perancis Modern2"}]
[null,6,{"$f":"'Pelacak Skor'!C9&COUNTIF('Pelacak Skor'!$C$4:C9,'Pelacak Skor'!C9)","v":"Perancis Modern3"}]
[null,7,{"$f":"'Pelacak Skor'!C10&COUNTIF('Pelacak Skor'!$C$4:C10,'Pelacak Skor'!C10)","v":"Menulis1"}]
[null,8,{"$f":"'Pelacak Skor'!C11&COUNTIF('Pelacak Skor'!$C$4:C11,'Pelacak Skor'!C11)","v":"Matematika 11"}]
[null,9,{"$f":"'Pelacak Skor'!C12&COUNTIF('Pelacak Skor'!$C$4:C12,'Pelacak Skor'!C12)","v":"Matematika 21"}]
[null,10,{"$f":"'Pelacak Skor'!C13&COUNTIF('Pelacak Skor'!$C$4:C14,'Pelacak Skor'!C13)","v":"Matematika 12"}]
[null,11,{"$f":"'Pelacak Skor'!C14&COUNTIF('Pelacak Skor'!$C$4:C14,'Pelacak Skor'!C14)","v":"Matematika 22"}]
[null,12,{"$f":"'Pelacak Skor'!C15&COUNTIF('Pelacak Skor'!$C$4:C15,'Pelacak Skor'!C15)","v":"0"}]
[null,13,{"$f":"'Pelacak Skor'!C16&COUNTIF('Pelacak Skor'!$C$4:C16,'Pelacak Skor'!C16)","v":"0"}]
[null,14,{"$f":"'Pelacak Skor'!C17&COUNTIF('Pelacak Skor'!$C$4:C17,'Pelacak Skor'!C17)","v":"0"}]
[null,15,{"$f":"'Pelacak Skor'!C18&COUNTIF('Pelacak Skor'!$C$4:C18,'Pelacak Skor'!C18)","v":"0"}]
[null,16,{"$f":"'Pelacak Skor'!C19&COUNTIF('Pelacak Skor'!$C$4:C19,'Pelacak Skor'!C19)","v":"0"}]
[null,17,{"$f":"'Pelacak Skor'!C20&COUNTIF('Pelacak Skor'!$C$4:C20,'Pelacak Skor'!C20)","v":"0"}]
[null,18,{"$f":"'Pelacak Skor'!C21&COUNTIF('Pelacak Skor'!$C$4:C21,'Pelacak Skor'!C21)","v":"0"}]
[null,19,{"$f":"'Pelacak Skor'!C22&COUNTIF('Pelacak Skor'!$C$4:C22,'Pelacak Skor'!C22)","v":"0"}]
[null,20,{"$f":"'Pelacak Skor'!C23&COUNTIF('Pelacak Skor'!$C$4:C23,'Pelacak Skor'!C23)","v":"0"}]
[null,21,{"$f":"'Pelacak Skor'!C24&COUNTIF('Pelacak Skor'!$C$4:C24,'Pelacak Skor'!C24)","v":"0"}]
[null,22,{"$f":"'Pelacak Skor'!C25&COUNTIF('Pelacak Skor'!$C$4:C25,'Pelacak Skor'!C25)","v":"0"}]
[null,23,{"$f":"'Pelacak Skor'!C26&COUNTIF('Pelacak Skor'!$C$4:C26,'Pelacak Skor'!C26)","v":"0"}]
[null,24,{"$f":"'Pelacak Skor'!C27&COUNTIF('Pelacak Skor'!$C$4:C27,'Pelacak Skor'!C27)","v":"0"}]
[null,25,{"$f":"'Pelacak Skor'!C28&COUNTIF('Pelacak Skor'!$C$4:C28,'Pelacak Skor'!C28)","v":"0"}]
[null,26,{"$f":"'Pelacak Skor'!C29&COUNTIF('Pelacak Skor'!$C$4:C29,'Pelacak Skor'!C29)","v":"0"}]
[null,27,{"$f":"'Pelacak Skor'!C30&COUNTIF('Pelacak Skor'!$C$4:C30,'Pelacak Skor'!C30)","v":"0"}]
[null,28,{"$f":"'Pelacak Skor'!C31&COUNTIF('Pelacak Skor'!$C$4:C31,'Pelacak Skor'!C31)","v":"0"}]
[null,29,{"$f":"'Pelacak Skor'!C32&COUNTIF('Pelacak Skor'!$C$4:C32,'Pelacak Skor'!C32)","v":"0"}]
[null,30,{"$f":"'Pelacak Skor'!C33&COUNTIF('Pelacak Skor'!$C$4:C33,'Pelacak Skor'!C33)","v":"0"}]
[null,31,{"$f":"'Pelacak Skor'!C34&COUNTIF('Pelacak Skor'!$C$4:C34,'Pelacak Skor'!C34)","v":"0"}]
[null,32,{"$f":"'Pelacak Skor'!C35&COUNTIF('Pelacak Skor'!$C$4:C35,'Pelacak Skor'!C35)","v":"0"}]
[null,33,{"$f":"'Pelacak Skor'!C36&COUNTIF('Pelacak Skor'!$C$4:C36,'Pelacak Skor'!C36)","v":"0"}]
[null,34,{"$f":"'Pelacak Skor'!C37&COUNTIF('Pelacak Skor'!$C$4:C37,'Pelacak Skor'!C37)","v":"0"}]
[null,35,{"$f":"'Pelacak Skor'!C38&COUNTIF('Pelacak Skor'!$C$4:C38,'Pelacak Skor'!C38)","v":"0"}]
[null,36,{"$f":"'Pelacak Skor'!C39&COUNTIF('Pelacak Skor'!$C$4:C39,'Pelacak Skor'!C39)","v":"0"}]
[null,37,{"$f":"'Pelacak Skor'!C40&COUNTIF('Pelacak Skor'!$C$4:C40,'Pelacak Skor'!C40)","v":"0"}]
[null,38,{"$f":"'Pelacak Skor'!C41&COUNTIF('Pelacak Skor'!$C$4:C41,'Pelacak Skor'!C41)","v":"0"}]
[null,39,{"$f":"'Pelacak Skor'!C42&COUNTIF('Pelacak Skor'!$C$4:C42,'Pelacak Skor'!C42)","v":"0"}]
[null,40,{"$f":"'Pelacak Skor'!C43&COUNTIF('Pelacak Skor'!$C$4:C43,'Pelacak Skor'!C43)","v":"0"}]
[null,41,{"$f":"'Pelacak Skor'!C44&COUNTIF('Pelacak Skor'!$C$4:C44,'Pelacak Skor'!C44)","v":"0"}]
[null,42,{"$f":"'Pelacak Skor'!C45&COUNTIF('Pelacak Skor'!$C$4:C45,'Pelacak Skor'!C45)","v":"0"}]
[null,43,{"$f":"'Pelacak Skor'!C46&COUNTIF('Pelacak Skor'!$C$4:C46,'Pelacak Skor'!C46)","v":"0"}]
[null,44,{"$f":"'Pelacak Skor'!C47&COUNTIF('Pelacak Skor'!$C$4:C47,'Pelacak Skor'!C47)","v":"0"}]
[null,45,{"$f":"'Pelacak Skor'!C48&COUNTIF('Pelacak Skor'!$C$4:C48,'Pelacak Skor'!C48)","v":"0"}]
[null,46,{"$f":"'Pelacak Skor'!C49&COUNTIF('Pelacak Skor'!$C$4:C49,'Pelacak Skor'!C49)","v":"0"}]
[null,47,{"$f":"'Pelacak Skor'!C50&COUNTIF('Pelacak Skor'!$C$4:C50,'Pelacak Skor'!C50)","v":"0"}]
[null,48,{"$f":"'Pelacak Skor'!C51&COUNTIF('Pelacak Skor'!$C$4:C51,'Pelacak Skor'!C51)","v":"0"}]
[null,49,{"$f":"'Pelacak Skor'!C52&COUNTIF('Pelacak Skor'!$C$4:C52,'Pelacak Skor'!C52)","v":"0"}]
[null,50,{"$f":"'Pelacak Skor'!C53&COUNTIF('Pelacak Skor'!$C$4:C53,'Pelacak Skor'!C53)","v":"0"}]
[null,51,{"$f":"'Pelacak Skor'!C54&COUNTIF('Pelacak Skor'!$C$4:C54,'Pelacak Skor'!C54)","v":"0"}]
[null,52,{"$f":"'Pelacak Skor'!C55&COUNTIF('Pelacak Skor'!$C$4:C55,'Pelacak Skor'!C55)","v":"0"}]
[null,53,{"$f":"'Pelacak Skor'!C56&COUNTIF('Pelacak Skor'!$C$4:C56,'Pelacak Skor'!C56)","v":"0"}]
[null,54,{"$f":"'Pelacak Skor'!C57&COUNTIF('Pelacak Skor'!$C$4:C57,'Pelacak Skor'!C57)","v":"0"}]
[null,55,{"$f":"'Pelacak Skor'!C58&COUNTIF('Pelacak Skor'!$C$4:C58,'Pelacak Skor'!C58)","v":"0"}]
[null,56,{"$f":"'Pelacak Skor'!C59&COUNTIF('Pelacak Skor'!$C$4:C59,'Pelacak Skor'!C59)","v":"0"}]
[null,57,{"$f":"'Pelacak Skor'!C60&COUNTIF('Pelacak Skor'!$C$4:C60,'Pelacak Skor'!C60)","v":"0"}]
[null,58,{"$f":"'Pelacak Skor'!C61&COUNTIF('Pelacak Skor'!$C$4:C61,'Pelacak Skor'!C61)","v":"0"}]
[null,59,{"$f":"'Pelacak Skor'!C62&COUNTIF('Pelacak Skor'!$C$4:C62,'Pelacak Skor'!C62)","v":"0"}]
[null,60,{"$f":"'Pelacak Skor'!C63&COUNTIF('Pelacak Skor'!$C$4:C63,'Pelacak Skor'!C63)","v":"0"}]
[null,61,{"$f":"'Pelacak Skor'!C64&COUNTIF('Pelacak Skor'!$C$4:C64,'Pelacak Skor'!C64)","v":"0"}]
[null,62,{"$f":"'Pelacak Skor'!C65&COUNTIF('Pelacak Skor'!$C$4:C65,'Pelacak Skor'!C65)","v":"0"}]
[null,63,{"$f":"'Pelacak Skor'!C66&COUNTIF('Pelacak Skor'!$C$4:C66,'Pelacak Skor'!C66)","v":"0"}]
[null,64,{"$f":"'Pelacak Skor'!C67&COUNTIF('Pelacak Skor'!$C$4:C67,'Pelacak Skor'!C67)","v":"0"}]
[null,65,{"$f":"'Pelacak Skor'!C68&COUNTIF('Pelacak Skor'!$C$4:C68,'Pelacak Skor'!C68)","v":"0"}]
[null,66,{"$f":"'Pelacak Skor'!C69&COUNTIF('Pelacak Skor'!$C$4:C69,'Pelacak Skor'!C69)","v":"0"}]
[null,67,{"$f":"'Pelacak Skor'!C70&COUNTIF('Pelacak Skor'!$C$4:C70,'Pelacak Skor'!C70)","v":"0"}]
[null,68,{"$f":"'Pelacak Skor'!C71&COUNTIF('Pelacak Skor'!$C$4:C71,'Pelacak Skor'!C71)","v":"0"}]
[null,69,{"$f":"'Pelacak Skor'!C72&COUNTIF('Pelacak Skor'!$C$4:C72,'Pelacak Skor'!C72)","v":"0"}]
[null,70,{"$f":"'Pelacak Skor'!C73&COUNTIF('Pelacak Skor'!$C$4:C73,'Pelacak Skor'!C73)","v":"0"}]
[null,71,{"$f":"'Pelacak Skor'!C74&COUNTIF('Pelacak Skor'!$C$4:C74,'Pelacak Skor'!C74)","v":"0"}]
[null,72,{"$f":"'Pelacak Skor'!C75&COUNTIF('Pelacak Skor'!$C$4:C75,'Pelacak Skor'!C75)","v":"0"}]
[null,73,{"$f":"'Pelacak Skor'!C76&COUNTIF('Pelacak Skor'!$C$4:C76,'Pelacak Skor'!C76)","v":"0"}]
[null,74,{"$f":"'Pelacak Skor'!C77&COUNTIF('Pelacak Skor'!$C$4:C77,'Pelacak Skor'!C77)","v":"0"}]
[null,75,{"$f":"'Pelacak Skor'!C78&COUNTIF('Pelacak Skor'!$C$4:C78,'Pelacak Skor'!C78)","v":"0"}]
[null,76,{"$f":"'Pelacak Skor'!C79&COUNTIF('Pelacak Skor'!$C$4:C79,'Pelacak Skor'!C79)","v":"0"}]
[null,77,{"$f":"'Pelacak Skor'!C80&COUNTIF('Pelacak Skor'!$C$4:C80,'Pelacak Skor'!C80)","v":"0"}]
[null,78,{"$f":"'Pelacak Skor'!C81&COUNTIF('Pelacak Skor'!$C$4:C81,'Pelacak Skor'!C81)","v":"0"}]
[null,79,{"$f":"'Pelacak Skor'!C82&COUNTIF('Pelacak Skor'!$C$4:C82,'Pelacak Skor'!C82)","v":"0"}]
[null,80,{"$f":"'Pelacak Skor'!C83&COUNTIF('Pelacak Skor'!$C$4:C83,'Pelacak Skor'!C83)","v":"0"}]
[null,81,{"$f":"'Pelacak Skor'!C84&COUNTIF('Pelacak Skor'!$C$4:C84,'Pelacak Skor'!C84)","v":"0"}]
[null,82,{"$f":"'Pelacak Skor'!C85&COUNTIF('Pelacak Skor'!$C$4:C85,'Pelacak Skor'!C85)","v":"0"}]
[null,83,{"$f":"'Pelacak Skor'!C86&COUNTIF('Pelacak Skor'!$C$4:C86,'Pelacak Skor'!C86)","v":"0"}]
[null,84,{"$f":"'Pelacak Skor'!C87&COUNTIF('Pelacak Skor'!$C$4:C87,'Pelacak Skor'!C87)","v":"0"}]
[null,85,{"$f":"'Pelacak Skor'!C88&COUNTIF('Pelacak Skor'!$C$4:C88,'Pelacak Skor'!C88)","v":"0"}]
[null,86,{"$f":"'Pelacak Skor'!C89&COUNTIF('Pelacak Skor'!$C$4:C89,'Pelacak Skor'!C89)","v":"0"}]
[null,87,{"$f":"'Pelacak Skor'!C90&COUNTIF('Pelacak Skor'!$C$4:C90,'Pelacak Skor'!C90)","v":"0"}]
[null,88,{"$f":"'Pelacak Skor'!C91&COUNTIF('Pelacak Skor'!$C$4:C91,'Pelacak Skor'!C91)","v":"0"}]
[null,89,{"$f":"'Pelacak Skor'!C92&COUNTIF('Pelacak Skor'!$C$4:C92,'Pelacak Skor'!C92)","v":"0"}]
[null,90,{"$f":"'Pelacak Skor'!C93&COUNTIF('Pelacak Skor'!$C$4:C93,'Pelacak Skor'!C93)","v":"0"}]
[null,91,{"$f":"'Pelacak Skor'!C94&COUNTIF('Pelacak Skor'!$C$4:C94,'Pelacak Skor'!C94)","v":"0"}]
[null,92,{"$f":"'Pelacak Skor'!C95&COUNTIF('Pelacak Skor'!$C$4:C95,'Pelacak Skor'!C95)","v":"0"}]
[null,93,{"$f":"'Pelacak Skor'!C96&COUNTIF('Pelacak Skor'!$C$4:C96,'Pelacak Skor'!C96)","v":"0"}]
[null,94,{"$f":"'Pelacak Skor'!C97&COUNTIF('Pelacak Skor'!$C$4:C97,'Pelacak Skor'!C97)","v":"0"}]
[null,95,{"$f":"'Pelacak Skor'!C98&COUNTIF('Pelacak Skor'!$C$4:C98,'Pelacak Skor'!C98)","v":"0"}]
[null,96,{"$f":"'Pelacak Skor'!C99&COUNTIF('Pelacak Skor'!$C$4:C99,'Pelacak Skor'!C99)","v":"0"}]
[null,97,{"$f":"'Pelacak Skor'!C100&COUNTIF('Pelacak Skor'!$C$4:C100,'Pelacak Skor'!C100)","v":"0"}]
[null,98,{"$f":"'Pelacak Skor'!C101&COUNTIF('Pelacak Skor'!$C$4:C101,'Pelacak Skor'!C101)","v":"0"}]
[null,99,{"$f":"'Pelacak Skor'!C102&COUNTIF('Pelacak Skor'!$C$4:C102,'Pelacak Skor'!C102)","v":"0"}]
[null,100,{"$f":"'Pelacak Skor'!C103&COUNTIF('Pelacak Skor'!$C$4:C103,'Pelacak Skor'!C103)","v":"0"}]
[null,101,{"$f":"'Pelacak Skor'!C104&COUNTIF('Pelacak Skor'!$C$4:C104,'Pelacak Skor'!C104)","v":"0"}]
[null,102,{"$f":"'Pelacak Skor'!C105&COUNTIF('Pelacak Skor'!$C$4:C105,'Pelacak Skor'!C105)","v":"0"}]
[null,103,{"$f":"'Pelacak Skor'!C106&COUNTIF('Pelacak Skor'!$C$4:C106,'Pelacak Skor'!C106)","v":"0"}]
[null,104,{"$f":"'Pelacak Skor'!C107&COUNTIF('Pelacak Skor'!$C$4:C107,'Pelacak Skor'!C107)","v":"0"}]
[null,105,{"$f":"'Pelacak Skor'!C108&COUNTIF('Pelacak Skor'!$C$4:C108,'Pelacak Skor'!C108)","v":"0"}]
[null,106,{"$f":"'Pelacak Skor'!C109&COUNTIF('Pelacak Skor'!$C$4:C109,'Pelacak Skor'!C109)","v":"0"}]
[null,107,{"$f":"'Pelacak Skor'!C110&COUNTIF('Pelacak Skor'!$C$4:C110,'Pelacak Skor'!C110)","v":"0"}]
[null,108,{"$f":"'Pelacak Skor'!C111&COUNTIF('Pelacak Skor'!$C$4:C111,'Pelacak Skor'!C111)","v":"0"}]
[null,109,{"$f":"'Pelacak Skor'!C112&COUNTIF('Pelacak Skor'!$C$4:C112,'Pelacak Skor'!C112)","v":"0"}]
[null,110,{"$f":"'Pelacak Skor'!C113&COUNTIF('Pelacak Skor'!$C$4:C113,'Pelacak Skor'!C113)","v":"0"}]
[null,111,{"$f":"'Pelacak Skor'!C114&COUNTIF('Pelacak Skor'!$C$4:C114,'Pelacak Skor'!C114)","v":"0"}]
[null,112,{"$f":"'Pelacak Skor'!C115&COUNTIF('Pelacak Skor'!$C$4:C115,'Pelacak Skor'!C115)","v":"0"}]
[null,113,{"$f":"'Pelacak Skor'!C116&COUNTIF('Pelacak Skor'!$C$4:C116,'Pelacak Skor'!C116)","v":"0"}]
[null,114,{"$f":"'Pelacak Skor'!C117&COUNTIF('Pelacak Skor'!$C$4:C117,'Pelacak Skor'!C117)","v":"0"}]
[null,115,{"$f":"'Pelacak Skor'!C118&COUNTIF('Pelacak Skor'!$C$4:C118,'Pelacak Skor'!C118)","v":"0"}]
[null,116,{"$f":"'Pelacak Skor'!C119&COUNTIF('Pelacak Skor'!$C$4:C119,'Pelacak Skor'!C119)","v":"0"}]
[null,117,{"$f":"'Pelacak Skor'!C120&COUNTIF('Pelacak Skor'!$C$4:C120,'Pelacak Skor'!C120)","v":"0"}]
[null,118,{"$f":"'Pelacak Skor'!C121&COUNTIF('Pelacak Skor'!$C$4:C121,'Pelacak Skor'!C121)","v":"0"}]
[null,119,{"$f":"'Pelacak Skor'!C122&COUNTIF('Pelacak Skor'!$C$4:C122,'Pelacak Skor'!C122)","v":"0"}]
[null,120,{"$f":"'Pelacak Skor'!C123&COUNTIF('Pelacak Skor'!$C$4:C123,'Pelacak Skor'!C123)","v":"0"}]
[null,121,{"$f":"'Pelacak Skor'!C124&COUNTIF('Pelacak Skor'!$C$4:C124,'Pelacak Skor'!C124)","v":"0"}]
[null,122,{"$f":"'Pelacak Skor'!C125&COUNTIF('Pelacak Skor'!$C$4:C125,'Pelacak Skor'!C125)","v":"0"}]
[null,123,{"$f":"'Pelacak Skor'!C126&COUNTIF('Pelacak Skor'!$C$4:C126,'Pelacak Skor'!C126)","v":"0"}]
[null,124,{"$f":"'Pelacak Skor'!C127&COUNTIF('Pelacak Skor'!$C$4:C127,'Pelacak Skor'!C127)","v":"0"}]
[null,125,{"$f":"'Pelacak Skor'!C128&COUNTIF('Pelacak Skor'!$C$4:C128,'Pelacak Skor'!C128)","v":"0"}]
[null,126,{"$f":"'Pelacak Skor'!C129&COUNTIF('Pelacak Skor'!$C$4:C129,'Pelacak Skor'!C129)","v":"0"}]
[null,127,{"$f":"'Pelacak Skor'!C130&COUNTIF('Pelacak Skor'!$C$4:C130,'Pelacak Skor'!C130)","v":"0"}]
[null,128,{"$f":"'Pelacak Skor'!C131&COUNTIF('Pelacak Skor'!$C$4:C131,'Pelacak Skor'!C131)","v":"0"}]
[null,129,{"$f":"'Pelacak Skor'!C132&COUNTIF('Pelacak Skor'!$C$4:C132,'Pelacak Skor'!C132)","v":"0"}]
[null,130,{"$f":"'Pelacak Skor'!C133&COUNTIF('Pelacak Skor'!$C$4:C133,'Pelacak Skor'!C133)","v":"0"}]
[null,131,{"$f":"'Pelacak Skor'!C134&COUNTIF('Pelacak Skor'!$C$4:C134,'Pelacak Skor'!C134)","v":"0"}]
[null,132,{"$f":"'Pelacak Skor'!C135&COUNTIF('Pelacak Skor'!$C$4:C135,'Pelacak Skor'!C135)","v":"0"}]
[null,133,{"$f":"'Pelacak Skor'!C136&COUNTIF('Pelacak Skor'!$C$4:C136,'Pelacak Skor'!C136)","v":"0"}]
[null,134,{"$f":"'Pelacak Skor'!C137&COUNTIF('Pelacak Skor'!$C$4:C137,'Pelacak Skor'!C137)","v":"0"}]
[null,135,{"$f":"'Pelacak Skor'!C138&COUNTIF('Pelacak Skor'!$C$4:C138,'Pelacak Skor'!C138)","v":"0"}]
[null,136,{"$f":"'Pelacak Skor'!C139&COUNTIF('Pelacak Skor'!$C$4:C139,'Pelacak Skor'!C139)","v":"0"}]
[null,137,{"$f":"'Pelacak Skor'!C140&COUNTIF('Pelacak Skor'!$C$4:C140,'Pelacak Skor'!C140)","v":"0"}]
[null,138,{"$f":"'Pelacak Skor'!C141&COUNTIF('Pelacak Skor'!$C$4:C141,'Pelacak Skor'!C141)","v":"0"}]
[null,139,{"$f":"'Pelacak Skor'!C142&COUNTIF('Pelacak Skor'!$C$4:C142,'Pelacak Skor'!C142)","v":"0"}]
[null,140,{"$f":"'Pelacak Skor'!C143&COUNTIF('Pelacak Skor'!$C$4:C143,'Pelacak Skor'!C143)","v":"0"}]
[null,141,{"$f":"'Pelacak Skor'!C144&COUNTIF('Pelacak Skor'!$C$4:C144,'Pelacak Skor'!C144)","v":"0"}]
[null,142,{"$f":"'Pelacak Skor'!C145&COUNTIF('Pelacak Skor'!$C$4:C145,'Pelacak Skor'!C145)","v":"0"}]
[null,143,{"$f":"'Pelacak Skor'!C146&COUNTIF('Pelacak Skor'!$C$4:C146,'Pelacak Skor'!C146)","v":"0"}]
[null,144,{"$f":"'Pelacak Skor'!C147&COUNTIF('Pelacak Skor'!$C$4:C147,'Pelacak Skor'!C147)","v":"0"}]
[null,145,{"$f":"'Pelacak Skor'!C148&COUNTIF('Pelacak Skor'!$C$4:C148,'Pelacak Skor'!C148)","v":"0"}]
[null,146,{"$f":"'Pelacak Skor'!C149&COUNTIF('Pelacak Skor'!$C$4:C149,'Pelacak Skor'!C149)","v":"0"}]
[null,147,{"$f":"'Pelacak Skor'!C150&COUNTIF('Pelacak Skor'!$C$4:C150,'Pelacak Skor'!C150)","v":"0"}]
[null,148,{"$f":"'Pelacak Skor'!C151&COUNTIF('Pelacak Skor'!$C$4:C151,'Pelacak Skor'!C151)","v":"0"}]
[null,149,{"$f":"'Pelacak Skor'!C152&COUNTIF('Pelacak Skor'!$C$4:C152,'Pelacak Skor'!C152)","v":"0"}]
[null,150,{"$f":"'Pelacak Skor'!C153&COUNTIF('Pelacak Skor'!$C$4:C153,'Pelacak Skor'!C153)","v":"0"}]
[null,151,{"$f":"'Pelacak Skor'!C154&COUNTIF('Pelacak Skor'!$C$4:C154,'Pelacak Skor'!C154)","v":"0"}]
[null,152,{"$f":"'Pelacak Skor'!C155&COUNTIF('Pelacak Skor'!$C$4:C155,'Pelacak Skor'!C155)","v":"0"}]
[null,153,{"$f":"'Pelacak Skor'!C156&COUNTIF('Pelacak Skor'!$C$4:C156,'Pelacak Skor'!C156)","v":"0"}]
[null,154,{"$f":"'Pelacak Skor'!C157&COUNTIF('Pelacak Skor'!$C$4:C157,'Pelacak Skor'!C157)","v":"0"}]
[null,155,{"$f":"'Pelacak Skor'!C158&COUNTIF('Pelacak Skor'!$C$4:C158,'Pelacak Skor'!C158)","v":"0"}]
[null,156,{"$f":"'Pelacak Skor'!C159&COUNTIF('Pelacak Skor'!$C$4:C159,'Pelacak Skor'!C159)","v":"0"}]
[null,157,{"$f":"'Pelacak Skor'!C160&COUNTIF('Pelacak Skor'!$C$4:C160,'Pelacak Skor'!C160)","v":"0"}]
[null,158,{"$f":"'Pelacak Skor'!C161&COUNTIF('Pelacak Skor'!$C$4:C161,'Pelacak Skor'!C161)","v":"0"}]
[null,159,{"$f":"'Pelacak Skor'!C162&COUNTIF('Pelacak Skor'!$C$4:C162,'Pelacak Skor'!C162)","v":"0"}]
[null,160,{"$f":"'Pelacak Skor'!C163&COUNTIF('Pelacak Skor'!$C$4:C163,'Pelacak Skor'!C163)","v":"0"}]
[null,161,{"$f":"'Pelacak Skor'!C164&COUNTIF('Pelacak Skor'!$C$4:C164,'Pelacak Skor'!C164)","v":"0"}]
[null,162,{"$f":"'Pelacak Skor'!C165&COUNTIF('Pelacak Skor'!$C$4:C165,'Pelacak Skor'!C165)","v":"0"}]
[null,163,{"$f":"'Pelacak Skor'!C166&COUNTIF('Pelacak Skor'!$C$4:C166,'Pelacak Skor'!C166)","v":"0"}]
[null,164,{"$f":"'Pelacak Skor'!C167&COUNTIF('Pelacak Skor'!$C$4:C167,'Pelacak Skor'!C167)","v":"0"}]
[null,165,{"$f":"'Pelacak Skor'!C168&COUNTIF('Pelacak Skor'!$C$4:C168,'Pelacak Skor'!C168)","v":"0"}]
[null,166,{"$f":"'Pelacak Skor'!C169&COUNTIF('Pelacak Skor'!$C$4:C169,'Pelacak Skor'!C169)","v":"0"}]
[null,167,{"$f":"'Pelacak Skor'!C170&COUNTIF('Pelacak Skor'!$C$4:C170,'Pelacak Skor'!C170)","v":"0"}]
[null,168,{"$f":"'Pelacak Skor'!C171&COUNTIF('Pelacak Skor'!$C$4:C171,'Pelacak Skor'!C171)","v":"0"}]
[null,169,{"$f":"'Pelacak Skor'!C172&COUNTIF('Pelacak Skor'!$C$4:C172,'Pelacak Skor'!C172)","v":"0"}]
[null,170,{"$f":"'Pelacak Skor'!C173&COUNTIF('Pelacak Skor'!$C$4:C173,'Pelacak Skor'!C173)","v":"0"}]
[null,171,{"$f":"'Pelacak Skor'!C174&COUNTIF('Pelacak Skor'!$C$4:C174,'Pelacak Skor'!C174)","v":"0"}]
[null,172,{"$f":"'Pelacak Skor'!C175&COUNTIF('Pelacak Skor'!$C$4:C175,'Pelacak Skor'!C175)","v":"0"}]
[null,173,{"$f":"'Pelacak Skor'!C176&COUNTIF('Pelacak Skor'!$C$4:C176,'Pelacak Skor'!C176)","v":"0"}]
[null,174,{"$f":"'Pelacak Skor'!C177&COUNTIF('Pelacak Skor'!$C$4:C177,'Pelacak Skor'!C177)","v":"0"}]
[null,175,{"$f":"'Pelacak Skor'!C178&COUNTIF('Pelacak Skor'!$C$4:C178,'Pelacak Skor'!C178)","v":"0"}]
[null,176,{"$f":"'Pelacak Skor'!C179&COUNTIF('Pelacak Skor'!$C$4:C179,'Pelacak Skor'!C179)","v":"0"}]
[null,177,{"$f":"'Pelacak Skor'!C180&COUNTIF('Pelacak Skor'!$C$4:C180,'Pelacak Skor'!C180)","v":"0"}]
[null,178,{"$f":"'Pelacak Skor'!C181&COUNTIF('Pelacak Skor'!$C$4:C181,'Pelacak Skor'!C181)","v":"0"}]
[null,179,{"$f":"'Pelacak Skor'!C182&COUNTIF('Pelacak Skor'!$C$4:C182,'Pelacak Skor'!C182)","v":"0"}]
[null,180,{"$f":"'Pelacak Skor'!C183&COUNTIF('Pelacak Skor'!$C$4:C183,'Pelacak Skor'!C183)","v":"0"}]
[null,181,{"$f":"'Pelacak Skor'!C184&COUNTIF('Pelacak Skor'!$C$4:C184,'Pelacak Skor'!C184)","v":"0"}]
[null,182,{"$f":"'Pelacak Skor'!C185&COUNTIF('Pelacak Skor'!$C$4:C185,'Pelacak Skor'!C185)","v":"0"}]
[null,183,{"$f":"'Pelacak Skor'!C186&COUNTIF('Pelacak Skor'!$C$4:C186,'Pelacak Skor'!C186)","v":"0"}]
[null,184,{"$f":"'Pelacak Skor'!C187&COUNTIF('Pelacak Skor'!$C$4:C187,'Pelacak Skor'!C187)","v":"0"}]
[null,185,{"$f":"'Pelacak Skor'!C188&COUNTIF('Pelacak Skor'!$C$4:C188,'Pelacak Skor'!C188)","v":"0"}]
[null,186,{"$f":"'Pelacak Skor'!C189&COUNTIF('Pelacak Skor'!$C$4:C189,'Pelacak Skor'!C189)","v":"0"}]
[null,187,{"$f":"'Pelacak Skor'!C190&COUNTIF('Pelacak Skor'!$C$4:C190,'Pelacak Skor'!C190)","v":"0"}]
[null,188,{"$f":"'Pelacak Skor'!C191&COUNTIF('Pelacak Skor'!$C$4:C191,'Pelacak Skor'!C191)","v":"0"}]
[null,189,{"$f":"'Pelacak Skor'!C192&COUNTIF('Pelacak Skor'!$C$4:C192,'Pelacak Skor'!C192)","v":"0"}]
[null,190,{"$f":"'Pelacak Skor'!C193&COUNTIF('Pelacak Skor'!$C$4:C193,'Pelacak Skor'!C193)","v":"0"}]
[null,191,{"$f":"'Pelacak Skor'!C194&COUNTIF('Pelacak Skor'!$C$4:C194,'Pelacak Skor'!C194)","v":"0"}]
[null,192,{"$f":"'Pelacak Skor'!C195&COUNTIF('Pelacak Skor'!$C$4:C195,'Pelacak Skor'!C195)","v":"0"}]
[null,193,{"$f":"'Pelacak Skor'!C196&COUNTIF('Pelacak Skor'!$C$4:C196,'Pelacak Skor'!C196)","v":"0"}]
[null,194,{"$f":"'Pelacak Skor'!C197&COUNTIF('Pelacak Skor'!$C$4:C197,'Pelacak Skor'!C197)","v":"0"}]
[null,195,{"$f":"'Pelacak Skor'!C198&COUNTIF('Pelacak Skor'!$C$4:C198,'Pelacak Skor'!C198)","v":"0"}]
[null,196,{"$f":"'Pelacak Skor'!C199&COUNTIF('Pelacak Skor'!$C$4:C199,'Pelacak Skor'!C199)","v":"0"}]
[null,197,{"$f":"'Pelacak Skor'!C200&COUNTIF('Pelacak Skor'!$C$4:C200,'Pelacak Skor'!C200)","v":"0"}]
[null,198,{"$f":"'Pelacak Skor'!C201&COUNTIF('Pelacak Skor'!$C$4:C201,'Pelacak Skor'!C201)","v":"0"}]
[null,199,{"$f":"'Pelacak Skor'!C202&COUNTIF('Pelacak Skor'!$C$4:C202,'Pelacak Skor'!C202)","v":"0"}]
[null,200,{"$f":"'Pelacak Skor'!C203&COUNTIF('Pelacak Skor'!$C$4:C203,'Pelacak Skor'!C203)","v":"0"}]
[null,201,{"$f":"'Pelacak Skor'!C204&COUNTIF('Pelacak Skor'!$C$4:C204,'Pelacak Skor'!C204)","v":"0"}]
[null,202,{"$f":"'Pelacak Skor'!C205&COUNTIF('Pelacak Skor'!$C$4:C205,'Pelacak Skor'!C205)","v":"0"}]
[null,203,{"$f":"'Pelacak Skor'!C206&COUNTIF('Pelacak Skor'!$C$4:C206,'Pelacak Skor'!C206)","v":"0"}]
[null,204,{"$f":"'Pelacak Skor'!C207&COUNTIF('Pelacak Skor'!$C$4:C207,'Pelacak Skor'!C207)","v":"0"}]
[null,205,{"$f":"'Pelacak Skor'!C208&COUNTIF('Pelacak Skor'!$C$4:C208,'Pelacak Skor'!C208)","v":"0"}]
[null,206,{"$f":"'Pelacak Skor'!C209&COUNTIF('Pelacak Skor'!$C$4:C209,'Pelacak Skor'!C209)","v":"0"}]
[null,207,{"$f":"'Pelacak Skor'!C210&COUNTIF('Pelacak Skor'!$C$4:C210,'Pelacak Skor'!C210)","v":"0"}]
[null,208,{"$f":"'Pelacak Skor'!C211&COUNTIF('Pelacak Skor'!$C$4:C211,'Pelacak Skor'!C211)","v":"0"}]
[null,209,{"$f":"'Pelacak Skor'!C212&COUNTIF('Pelacak Skor'!$C$4:C212,'Pelacak Skor'!C212)","v":"0"}]
[null,210,{"$f":"'Pelacak Skor'!C213&COUNTIF('Pelacak Skor'!$C$4:C213,'Pelacak Skor'!C213)","v":"0"}]
[null,211,{"$f":"'Pelacak Skor'!C214&COUNTIF('Pelacak Skor'!$C$4:C214,'Pelacak Skor'!C214)","v":"0"}]
[null,212,{"$f":"'Pelacak Skor'!C215&COUNTIF('Pelacak Skor'!$C$4:C215,'Pelacak Skor'!C215)","v":"0"}]
[null,213,{"$f":"'Pelacak Skor'!C216&COUNTIF('Pelacak Skor'!$C$4:C216,'Pelacak Skor'!C216)","v":"0"}]
[null,214,{"$f":"'Pelacak Skor'!C217&COUNTIF('Pelacak Skor'!$C$4:C217,'Pelacak Skor'!C217)","v":"0"}]
[null,215,{"$f":"'Pelacak Skor'!C218&COUNTIF('Pelacak Skor'!$C$4:C218,'Pelacak Skor'!C218)","v":"0"}]
[null,216,{"$f":"'Pelacak Skor'!C219&COUNTIF('Pelacak Skor'!$C$4:C219,'Pelacak Skor'!C219)","v":"0"}]
[null,217,{"$f":"'Pelacak Skor'!C220&COUNTIF('Pelacak Skor'!$C$4:C220,'Pelacak Skor'!C220)","v":"0"}]
[null,218,{"$f":"'Pelacak Skor'!C221&COUNTIF('Pelacak Skor'!$C$4:C221,'Pelacak Skor'!C221)","v":"0"}]
[null,219,{"$f":"'Pelacak Skor'!C222&COUNTIF('Pelacak Skor'!$C$4:C222,'Pelacak Skor'!C222)","v":"0"}]
[null,220,{"$f":"'Pelacak Skor'!C223&COUNTIF('Pelacak Skor'!$C$4:C223,'Pelacak Skor'!C223)","v":"0"}]
[null,221,{"$f":"'Pelacak Skor'!C224&COUNTIF('Pelacak Skor'!$C$4:C224,'Pelacak Skor'!C224)","v":"0"}]
[null,222,{"$f":"'Pelacak Skor'!C225&COUNTIF('Pelacak Skor'!$C$4:C225,'Pelacak Skor'!C225)","v":"0"}]
[null,223,{"$f":"'Pelacak Skor'!C226&COUNTIF('Pelacak Skor'!$C$4:C226,'Pelacak Skor'!C226)","v":"0"}]
[null,224,{"$f":"'Pelacak Skor'!C227&COUNTIF('Pelacak Skor'!$C$4:C227,'Pelacak Skor'!C227)","v":"0"}]
[null,225,{"$f":"'Pelacak Skor'!C228&COUNTIF('Pelacak Skor'!$C$4:C228,'Pelacak Skor'!C228)","v":"0"}]
[null,226,{"$f":"'Pelacak Skor'!C229&COUNTIF('Pelacak Skor'!$C$4:C229,'Pelacak Skor'!C229)","v":"0"}]
[null,227,{"$f":"'Pelacak Skor'!C230&COUNTIF('Pelacak Skor'!$C$4:C230,'Pelacak Skor'!C230)","v":"0"}]
[null,228,{"$f":"'Pelacak Skor'!C231&COUNTIF('Pelacak Skor'!$C$4:C231,'Pelacak Skor'!C231)","v":"0"}]
[null,229,{"$f":"'Pelacak Skor'!C232&COUNTIF('Pelacak Skor'!$C$4:C232,'Pelacak Skor'!C232)","v":"0"}]
[null,230,{"$f":"'Pelacak Skor'!C233&COUNTIF('Pelacak Skor'!$C$4:C233,'Pelacak Skor'!C233)","v":"0"}]
[null,231,{"$f":"'Pelacak Skor'!C234&COUNTIF('Pelacak Skor'!$C$4:C234,'Pelacak Skor'!C234)","v":"0"}]
[null,232,{"$f":"'Pelacak Skor'!C235&COUNTIF('Pelacak Skor'!$C$4:C235,'Pelacak Skor'!C235)","v":"0"}]
[null,233,{"$f":"'Pelacak Skor'!C236&COUNTIF('Pelacak Skor'!$C$4:C236,'Pelacak Skor'!C236)","v":"0"}]
[null,234,{"$f":"'Pelacak Skor'!C237&COUNTIF('Pelacak Skor'!$C$4:C237,'Pelacak Skor'!C237)","v":"0"}]
[null,235,{"$f":"'Pelacak Skor'!C238&COUNTIF('Pelacak Skor'!$C$4:C238,'Pelacak Skor'!C238)","v":"0"}]
[null,236,{"$f":"'Pelacak Skor'!C239&COUNTIF('Pelacak Skor'!$C$4:C239,'Pelacak Skor'!C239)","v":"0"}]
[null,237,{"$f":"'Pelacak Skor'!C240&COUNTIF('Pelacak Skor'!$C$4:C240,'Pelacak Skor'!C240)","v":"0"}]
[null,238,{"$f":"'Pelacak Skor'!C241&COUNTIF('Pelacak Skor'!$C$4:C241,'Pelacak Skor'!C241)","v":"0"}]
[null,239,{"$f":"'Pelacak Skor'!C242&COUNTIF('Pelacak Skor'!$C$4:C242,'Pelacak Skor'!C242)","v":"0"}]
[null,240,{"$f":"'Pelacak Skor'!C243&COUNTIF('Pelacak Skor'!$C$4:C243,'Pelacak Skor'!C243)","v":"0"}]
[null,241,{"$f":"'Pelacak Skor'!C244&COUNTIF('Pelacak Skor'!$C$4:C244,'Pelacak Skor'!C244)","v":"0"}]
[null,242,{"$f":"'Pelacak Skor'!C245&COUNTIF('Pelacak Skor'!$C$4:C245,'Pelacak Skor'!C245)","v":"0"}]
[null,243,{"$f":"'Pelacak Skor'!C246&COUNTIF('Pelacak Skor'!$C$4:C246,'Pelacak Skor'!C246)","v":"0"}]
[null,244,{"$f":"'Pelacak Skor'!C247&COUNTIF('Pelacak Skor'!$C$4:C247,'Pelacak Skor'!C247)","v":"0"}]
[null,245,{"$f":"'Pelacak Skor'!C248&COUNTIF('Pelacak Skor'!$C$4:C248,'Pelacak Skor'!C248)","v":"0"}]
[null,246,{"$f":"'Pelacak Skor'!C249&COUNTIF('Pelacak Skor'!$C$4:C249,'Pelacak Skor'!C249)","v":"0"}]
[null,247,{"$f":"'Pelacak Skor'!C250&COUNTIF('Pelacak Skor'!$C$4:C250,'Pelacak Skor'!C250)","v":"0"}]
[null,248,{"$f":"'Pelacak Skor'!C251&COUNTIF('Pelacak Skor'!$C$4:C251,'Pelacak Skor'!C251)","v":"0"}]
[null,249,{"$f":"'Pelacak Skor'!C252&COUNTIF('Pelacak Skor'!$C$4:C252,'Pelacak Skor'!C252)","v":"0"}]
[null,250,{"$f":"'Pelacak Skor'!C253&COUNTIF('Pelacak Skor'!$C$4:C253,'Pelacak Skor'!C253)","v":"0"}]
[null,251,{"$f":"'Pelacak Skor'!C254&COUNTIF('Pelacak Skor'!$C$4:C254,'Pelacak Skor'!C254)","v":"0"}]
[null,252,{"$f":"'Pelacak Skor'!C255&COUNTIF('Pelacak Skor'!$C$4:C255,'Pelacak Skor'!C255)","v":"0"}]
[null,253,{"$f":"'Pelacak Skor'!C256&COUNTIF('Pelacak Skor'!$C$4:C256,'Pelacak Skor'!C256)","v":"0"}]
[null,254,{"$f":"'Pelacak Skor'!C257&COUNTIF('Pelacak Skor'!$C$4:C257,'Pelacak Skor'!C257)","v":"0"}]
[null,255,{"$f":"'Pelacak Skor'!C258&COUNTIF('Pelacak Skor'!$C$4:C258,'Pelacak Skor'!C258)","v":"0"}]
[null,256,{"$f":"'Pelacak Skor'!C259&COUNTIF('Pelacak Skor'!$C$4:C259,'Pelacak Skor'!C259)","v":"0"}]
[null,257,{"$f":"'Pelacak Skor'!C260&COUNTIF('Pelacak Skor'!$C$4:C260,'Pelacak Skor'!C260)","v":"0"}]
[null,258,{"$f":"'Pelacak Skor'!C261&COUNTIF('Pelacak Skor'!$C$4:C261,'Pelacak Skor'!C261)","v":"0"}]
[null,259,{"$f":"'Pelacak Skor'!C262&COUNTIF('Pelacak Skor'!$C$4:C262,'Pelacak Skor'!C262)","v":"0"}]
[null,260,{"$f":"'Pelacak Skor'!C263&COUNTIF('Pelacak Skor'!$C$4:C263,'Pelacak Skor'!C263)","v":"0"}]
[null,261,{"$f":"'Pelacak Skor'!C264&COUNTIF('Pelacak Skor'!$C$4:C264,'Pelacak Skor'!C264)","v":"0"}]
[null,262,{"$f":"'Pelacak Skor'!C265&COUNTIF('Pelacak Skor'!$C$4:C265,'Pelacak Skor'!C265)","v":"0"}]
[null,263,{"$f":"'Pelacak Skor'!C266&COUNTIF('Pelacak Skor'!$C$4:C266,'Pelacak Skor'!C266)","v":"0"}]
[null,264,{"$f":"'Pelacak Skor'!C267&COUNTIF('Pelacak Skor'!$C$4:C267,'Pelacak Skor'!C267)","v":"0"}]
[null,265,{"$f":"'Pelacak Skor'!C268&COUNTIF('Pelacak Skor'!$C$4:C268,'Pelacak Skor'!C268)","v":"0"}]
[null,266,{"$f":"'Pelacak Skor'!C269&COUNTIF('Pelacak Skor'!$C$4:C269,'Pelacak Skor'!C269)","v":"0"}]
[null,267,{"$f":"'Pelacak Skor'!C270&COUNTIF('Pelacak Skor'!$C$4:C270,'Pelacak Skor'!C270)","v":"0"}]
[null,268,{"$f":"'Pelacak Skor'!C271&COUNTIF('Pelacak Skor'!$C$4:C271,'Pelacak Skor'!C271)","v":"0"}]
[null,269,{"$f":"'Pelacak Skor'!C272&COUNTIF('Pelacak Skor'!$C$4:C272,'Pelacak Skor'!C272)","v":"0"}]
[null,270,{"$f":"'Pelacak Skor'!C273&COUNTIF('Pelacak Skor'!$C$4:C273,'Pelacak Skor'!C273)","v":"0"}]
[null,271,{"$f":"'Pelacak Skor'!C274&COUNTIF('Pelacak Skor'!$C$4:C274,'Pelacak Skor'!C274)","v":"0"}]
[null,272,{"$f":"'Pelacak Skor'!C275&COUNTIF('Pelacak Skor'!$C$4:C275,'Pelacak Skor'!C275)","v":"0"}]
[null,273,{"$f":"'Pelacak Skor'!C276&COUNTIF('Pelacak Skor'!$C$4:C276,'Pelacak Skor'!C276)","v":"0"}]
[null,274,{"$f":"'Pelacak Skor'!C277&COUNTIF('Pelacak Skor'!$C$4:C277,'Pelacak Skor'!C277)","v":"0"}]
[null,275,{"$f":"'Pelacak Skor'!C278&COUNTIF('Pelacak Skor'!$C$4:C278,'Pelacak Skor'!C278)","v":"0"}]
[null,276,{"$f":"'Pelacak Skor'!C279&COUNTIF('Pelacak Skor'!$C$4:C279,'Pelacak Skor'!C279)","v":"0"}]
[null,277,{"$f":"'Pelacak Skor'!C280&COUNTIF('Pelacak Skor'!$C$4:C280,'Pelacak Skor'!C280)","v":"0"}]
[null,278,{"$f":"'Pelacak Skor'!C281&COUNTIF('Pelacak Skor'!$C$4:C281,'Pelacak Skor'!C281)","v":"0"}]
[null,279,{"$f":"'Pelacak Skor'!C282&COUNTIF('Pelacak Skor'!$C$4:C282,'Pelacak Skor'!C282)","v":"0"}]
[null,280,{"$f":"'Pelacak Skor'!C283&COUNTIF('Pelacak Skor'!$C$4:C283,'Pelacak Skor'!C283)","v":"0"}]
[null,281,{"$f":"'Pelacak Skor'!C284&COUNTIF('Pelacak Skor'!$C$4:C284,'Pelacak Skor'!C284)","v":"0"}]
[null,282,{"$f":"'Pelacak Skor'!C285&COUNTIF('Pelacak Skor'!$C$4:C285,'Pelacak Skor'!C285)","v":"0"}]
[null,283,{"$f":"'Pelacak Skor'!C286&COUNTIF('Pelacak Skor'!$C$4:C286,'Pelacak Skor'!C286)","v":"0"}]
[null,284,{"$f":"'Pelacak Skor'!C287&COUNTIF('Pelacak Skor'!$C$4:C287,'Pelacak Skor'!C287)","v":"0"}]
[null,285,{"$f":"'Pelacak Skor'!C288&COUNTIF('Pelacak Skor'!$C$4:C288,'Pelacak Skor'!C288)","v":"0"}]
[null,286,{"$f":"'Pelacak Skor'!C289&COUNTIF('Pelacak Skor'!$C$4:C289,'Pelacak Skor'!C289)","v":"0"}]
[null,287,{"$f":"'Pelacak Skor'!C290&COUNTIF('Pelacak Skor'!$C$4:C290,'Pelacak Skor'!C290)","v":"0"}]
[null,288,{"$f":"'Pelacak Skor'!C291&COUNTIF('Pelacak Skor'!$C$4:C291,'Pelacak Skor'!C291)","v":"0"}]
[null,289,{"$f":"'Pelacak Skor'!C292&COUNTIF('Pelacak Skor'!$C$4:C292,'Pelacak Skor'!C292)","v":"0"}]
[null,290,{"$f":"'Pelacak Skor'!C293&COUNTIF('Pelacak Skor'!$C$4:C293,'Pelacak Skor'!C293)","v":"0"}]
[null,291,{"$f":"'Pelacak Skor'!C294&COUNTIF('Pelacak Skor'!$C$4:C294,'Pelacak Skor'!C294)","v":"0"}]
[null,292,{"$f":"'Pelacak Skor'!C295&COUNTIF('Pelacak Skor'!$C$4:C295,'Pelacak Skor'!C295)","v":"0"}]
[null,293,{"$f":"'Pelacak Skor'!C296&COUNTIF('Pelacak Skor'!$C$4:C296,'Pelacak Skor'!C296)","v":"0"}]
[null,294,{"$f":"'Pelacak Skor'!C297&COUNTIF('Pelacak Skor'!$C$4:C297,'Pelacak Skor'!C297)","v":"0"}]
[null,295,{"$f":"'Pelacak Skor'!C298&COUNTIF('Pelacak Skor'!$C$4:C298,'Pelacak Skor'!C298)","v":"0"}]
[null,296,{"$f":"'Pelacak Skor'!C299&COUNTIF('Pelacak Skor'!$C$4:C299,'Pelacak Skor'!C299)","v":"0"}]
[null,297,{"$f":"'Pelacak Skor'!C300&COUNTIF('Pelacak Skor'!$C$4:C300,'Pelacak Skor'!C300)","v":"0"}]
[null,298,{"$f":"'Pelacak Skor'!C301&COUNTIF('Pelacak Skor'!$C$4:C301,'Pelacak Skor'!C301)","v":"0"}]
[null,299,{"$f":"'Pelacak Skor'!C302&COUNTIF('Pelacak Skor'!$C$4:C302,'Pelacak Skor'!C302)","v":"0"}]
[null,300,{"$f":"'Pelacak Skor'!C303&COUNTIF('Pelacak Skor'!$C$4:C303,'Pelacak Skor'!C303)","v":"0"}]
[null,301,{"$f":"'Pelacak Skor'!C304&COUNTIF('Pelacak Skor'!$C$4:C304,'Pelacak Skor'!C304)","v":"0"}]
[null,302,{"$f":"'Pelacak Skor'!C305&COUNTIF('Pelacak Skor'!$C$4:C305,'Pelacak Skor'!C305)","v":"0"}]
[null,303,{"$f":"'Pelacak Skor'!C306&COUNTIF('Pelacak Skor'!$C$4:C306,'Pelacak Skor'!C306)","v":"0"}]
[null,304,{"$f":"'Pelacak Skor'!C307&COUNTIF('Pelacak Skor'!$C$4:C307,'Pelacak Skor'!C307)","v":"0"}]
[null,305,{"$f":"'Pelacak Skor'!C308&COUNTIF('Pelacak Skor'!$C$4:C308,'Pelacak Skor'!C308)","v":"0"}]
[null,306,{"$f":"'Pelacak Skor'!C309&COUNTIF('Pelacak Skor'!$C$4:C309,'Pelacak Skor'!C309)","v":"0"}]
[null,307,{"$f":"'Pelacak Skor'!C310&COUNTIF('Pelacak Skor'!$C$4:C310,'Pelacak Skor'!C310)","v":"0"}]
[null,308,{"$f":"'Pelacak Skor'!C311&COUNTIF('Pelacak Skor'!$C$4:C311,'Pelacak Skor'!C311)","v":"0"}]
[null,309,{"$f":"'Pelacak Skor'!C312&COUNTIF('Pelacak Skor'!$C$4:C312,'Pelacak Skor'!C312)","v":"0"}]
[null,310,{"$f":"'Pelacak Skor'!C313&COUNTIF('Pelacak Skor'!$C$4:C313,'Pelacak Skor'!C313)","v":"0"}]
[null,311,{"$f":"'Pelacak Skor'!C314&COUNTIF('Pelacak Skor'!$C$4:C314,'Pelacak Skor'!C314)","v":"0"}]
[null,312,{"$f":"'Pelacak Skor'!C315&COUNTIF('Pelacak Skor'!$C$4:C315,'Pelacak Skor'!C315)","v":"0"}]
[null,313,{"$f":"'Pelacak Skor'!C316&COUNTIF('Pelacak Skor'!$C$4:C316,'Pelacak Skor'!C316)","v":"0"}]
[null,314,{"$f":"'Pelacak Skor'!C317&COUNTIF('Pelacak Skor'!$C$4:C317,'Pelacak Skor'!C317)","v":"0"}]
[null,315,{"$f":"'Pelacak Skor'!C318&COUNTIF('Pelacak Skor'!$C$4:C318,'Pelacak Skor'!C318)","v":"0"}]
[null,316,{"$f":"'Pelacak Skor'!C319&COUNTIF('Pelacak Skor'!$C$4:C319,'Pelacak Skor'!C319)","v":"0"}]
[null,317,{"$f":"'Pelacak Skor'!C320&COUNTIF('Pelacak Skor'!$C$4:C320,'Pelacak Skor'!C320)","v":"0"}]
[null,318,{"$f":"'Pelacak Skor'!C321&COUNTIF('Pelacak Skor'!$C$4:C321,'Pelacak Skor'!C321)","v":"0"}]
[null,319,{"$f":"'Pelacak Skor'!C322&COUNTIF('Pelacak Skor'!$C$4:C322,'Pelacak Skor'!C322)","v":"0"}]
[null,320,{"$f":"'Pelacak Skor'!C323&COUNTIF('Pelacak Skor'!$C$4:C323,'Pelacak Skor'!C323)","v":"0"}]
[null,321,{"$f":"'Pelacak Skor'!C324&COUNTIF('Pelacak Skor'!$C$4:C324,'Pelacak Skor'!C324)","v":"0"}]
[null,322,{"$f":"'Pelacak Skor'!C325&COUNTIF('Pelacak Skor'!$C$4:C325,'Pelacak Skor'!C325)","v":"0"}]
[null,323,{"$f":"'Pelacak Skor'!C326&COUNTIF('Pelacak Skor'!$C$4:C326,'Pelacak Skor'!C326)","v":"0"}]
[null,324,{"$f":"'Pelacak Skor'!C327&COUNTIF('Pelacak Skor'!$C$4:C327,'Pelacak Skor'!C327)","v":"0"}]
[null,325,{"$f":"'Pelacak Skor'!C328&COUNTIF('Pelacak Skor'!$C$4:C328,'Pelacak Skor'!C328)","v":"0"}]
[null,326,{"$f":"'Pelacak Skor'!C329&COUNTIF('Pelacak Skor'!$C$4:C329,'Pelacak Skor'!C329)","v":"0"}]
[null,327,{"$f":"'Pelacak Skor'!C330&COUNTIF('Pelacak Skor'!$C$4:C330,'Pelacak Skor'!C330)","v":"0"}]
[null,328,{"$f":"'Pelacak Skor'!C331&COUNTIF('Pelacak Skor'!$C$4:C331,'Pelacak Skor'!C331)","v":"0"}]
[null,329,{"$f":"'Pelacak Skor'!C332&COUNTIF('Pelacak Skor'!$C$4:C332,'Pelacak Skor'!C332)","v":"0"}]
[null,330,{"$f":"'Pelacak Skor'!C333&COUNTIF('Pelacak Skor'!$C$4:C333,'Pelacak Skor'!C333)","v":"0"}]
[null,331,{"$f":"'Pelacak Skor'!C334&COUNTIF('Pelacak Skor'!$C$4:C334,'Pelacak Skor'!C334)","v":"0"}]
[null,332,{"$f":"'Pelacak Skor'!C335&COUNTIF('Pelacak Skor'!$C$4:C335,'Pelacak Skor'!C335)","v":"0"}]
[null,333,{"$f":"'Pelacak Skor'!C336&COUNTIF('Pelacak Skor'!$C$4:C336,'Pelacak Skor'!C336)","v":"0"}]
[null,334,{"$f":"'Pelacak Skor'!C337&COUNTIF('Pelacak Skor'!$C$4:C337,'Pelacak Skor'!C337)","v":"0"}]
[null,335,{"$f":"'Pelacak Skor'!C338&COUNTIF('Pelacak Skor'!$C$4:C338,'Pelacak Skor'!C338)","v":"0"}]
[null,336,{"$f":"'Pelacak Skor'!C339&COUNTIF('Pelacak Skor'!$C$4:C339,'Pelacak Skor'!C339)","v":"0"}]
[null,337,{"$f":"'Pelacak Skor'!C340&COUNTIF('Pelacak Skor'!$C$4:C340,'Pelacak Skor'!C340)","v":"0"}]
[null,338,{"$f":"'Pelacak Skor'!C341&COUNTIF('Pelacak Skor'!$C$4:C341,'Pelacak Skor'!C341)","v":"0"}]
[null,339,{"$f":"'Pelacak Skor'!C342&COUNTIF('Pelacak Skor'!$C$4:C342,'Pelacak Skor'!C342)","v":"0"}]
[null,340,{"$f":"'Pelacak Skor'!C343&COUNTIF('Pelacak Skor'!$C$4:C343,'Pelacak Skor'!C343)","v":"0"}]
[null,341,{"$f":"'Pelacak Skor'!C344&COUNTIF('Pelacak Skor'!$C$4:C344,'Pelacak Skor'!C344)","v":"0"}]
[null,342,{"$f":"'Pelacak Skor'!C345&COUNTIF('Pelacak Skor'!$C$4:C345,'Pelacak Skor'!C345)","v":"0"}]
[null,343,{"$f":"'Pelacak Skor'!C346&COUNTIF('Pelacak Skor'!$C$4:C346,'Pelacak Skor'!C346)","v":"0"}]
[null,344,{"$f":"'Pelacak Skor'!C347&COUNTIF('Pelacak Skor'!$C$4:C347,'Pelacak Skor'!C347)","v":"0"}]
[null,345,{"$f":"'Pelacak Skor'!C348&COUNTIF('Pelacak Skor'!$C$4:C348,'Pelacak Skor'!C348)","v":"0"}]
[null,346,{"$f":"'Pelacak Skor'!C349&COUNTIF('Pelacak Skor'!$C$4:C349,'Pelacak Skor'!C349)","v":"0"}]
[null,347,{"$f":"'Pelacak Skor'!C350&COUNTIF('Pelacak Skor'!$C$4:C350,'Pelacak Skor'!C350)","v":"0"}]
[null,348,{"$f":"'Pelacak Skor'!C351&COUNTIF('Pelacak Skor'!$C$4:C351,'Pelacak Skor'!C351)","v":"0"}]
[null,349,{"$f":"'Pelacak Skor'!C352&COUNTIF('Pelacak Skor'!$C$4:C352,'Pelacak Skor'!C352)","v":"0"}]
[null,350,{"$f":"'Pelacak Skor'!C353&COUNTIF('Pelacak Skor'!$C$4:C353,'Pelacak Skor'!C353)","v":"0"}]
[null,351,{"$f":"'Pelacak Skor'!C354&COUNTIF('Pelacak Skor'!$C$4:C354,'Pelacak Skor'!C354)","v":"0"}]
[null,352,{"$f":"'Pelacak Skor'!C355&COUNTIF('Pelacak Skor'!$C$4:C355,'Pelacak Skor'!C355)","v":"0"}]
[null,353,{"$f":"'Pelacak Skor'!C356&COUNTIF('Pelacak Skor'!$C$4:C356,'Pelacak Skor'!C356)","v":"0"}]
[null,354,{"$f":"'Pelacak Skor'!C357&COUNTIF('Pelacak Skor'!$C$4:C357,'Pelacak Skor'!C357)","v":"0"}]
[null,355,{"$f":"'Pelacak Skor'!C358&COUNTIF('Pelacak Skor'!$C$4:C358,'Pelacak Skor'!C358)","v":"0"}]
[null,356,{"$f":"'Pelacak Skor'!C359&COUNTIF('Pelacak Skor'!$C$4:C359,'Pelacak Skor'!C359)","v":"0"}]
[null,357,{"$f":"'Pelacak Skor'!C360&COUNTIF('Pelacak Skor'!$C$4:C360,'Pelacak Skor'!C360)","v":"0"}]
[null,358,{"$f":"'Pelacak Skor'!C361&COUNTIF('Pelacak Skor'!$C$4:C361,'Pelacak Skor'!C361)","v":"0"}]
[null,359,{"$f":"'Pelacak Skor'!C362&COUNTIF('Pelacak Skor'!$C$4:C362,'Pelacak Skor'!C362)","v":"0"}]
[null,360,{"$f":"'Pelacak Skor'!C363&COUNTIF('Pelacak Skor'!$C$4:C363,'Pelacak Skor'!C363)","v":"0"}]
[null,361,{"$f":"'Pelacak Skor'!C364&COUNTIF('Pelacak Skor'!$C$4:C364,'Pelacak Skor'!C364)","v":"0"}]
[null,362,{"$f":"'Pelacak Skor'!C365&COUNTIF('Pelacak Skor'!$C$4:C365,'Pelacak Skor'!C365)","v":"0"}]
[null,363,{"$f":"'Pelacak Skor'!C366&COUNTIF('Pelacak Skor'!$C$4:C366,'Pelacak Skor'!C366)","v":"0"}]
[null,364,{"$f":"'Pelacak Skor'!C367&COUNTIF('Pelacak Skor'!$C$4:C367,'Pelacak Skor'!C367)","v":"0"}]
[null,365,{"$f":"'Pelacak Skor'!C368&COUNTIF('Pelacak Skor'!$C$4:C368,'Pelacak Skor'!C368)","v":"0"}]
[null,366,{"$f":"'Pelacak Skor'!C369&COUNTIF('Pelacak Skor'!$C$4:C369,'Pelacak Skor'!C369)","v":"0"}]
[null,367,{"$f":"'Pelacak Skor'!C370&COUNTIF('Pelacak Skor'!$C$4:C370,'Pelacak Skor'!C370)","v":"0"}]
[null,368,{"$f":"'Pelacak Skor'!C371&COUNTIF('Pelacak Skor'!$C$4:C371,'Pelacak Skor'!C371)","v":"0"}]
[null,369,{"$f":"'Pelacak Skor'!C372&COUNTIF('Pelacak Skor'!$C$4:C372,'Pelacak Skor'!C372)","v":"0"}]
[null,370,{"$f":"'Pelacak Skor'!C373&COUNTIF('Pelacak Skor'!$C$4:C373,'Pelacak Skor'!C373)","v":"0"}]
[null,371,{"$f":"'Pelacak Skor'!C374&COUNTIF('Pelacak Skor'!$C$4:C374,'Pelacak Skor'!C374)","v":"0"}]
[null,372,{"$f":"'Pelacak Skor'!C375&COUNTIF('Pelacak Skor'!$C$4:C375,'Pelacak Skor'!C375)","v":"0"}]
[null,373,{"$f":"'Pelacak Skor'!C376&COUNTIF('Pelacak Skor'!$C$4:C376,'Pelacak Skor'!C376)","v":"0"}]
[null,374,{"$f":"'Pelacak Skor'!C377&COUNTIF('Pelacak Skor'!$C$4:C377,'Pelacak Skor'!C377)","v":"0"}]
[null,375,{"$f":"'Pelacak Skor'!C378&COUNTIF('Pelacak Skor'!$C$4:C378,'Pelacak Skor'!C378)","v":"0"}]
[null,376,{"$f":"'Pelacak Skor'!C379&COUNTIF('Pelacak Skor'!$C$4:C379,'Pelacak Skor'!C379)","v":"0"}]
[null,377,{"$f":"'Pelacak Skor'!C380&COUNTIF('Pelacak Skor'!$C$4:C380,'Pelacak Skor'!C380)","v":"0"}]
[null,378,{"$f":"'Pelacak Skor'!C381&COUNTIF('Pelacak Skor'!$C$4:C381,'Pelacak Skor'!C381)","v":"0"}]
[null,379,{"$f":"'Pelacak Skor'!C382&COUNTIF('Pelacak Skor'!$C$4:C382,'Pelacak Skor'!C382)","v":"0"}]
[null,380,{"$f":"'Pelacak Skor'!C383&COUNTIF('Pelacak Skor'!$C$4:C383,'Pelacak Skor'!C383)","v":"0"}]
[null,381,{"$f":"'Pelacak Skor'!C384&COUNTIF('Pelacak Skor'!$C$4:C384,'Pelacak Skor'!C384)","v":"0"}]
[null,382,{"$f":"'Pelacak Skor'!C385&COUNTIF('Pelacak Skor'!$C$4:C385,'Pelacak Skor'!C385)","v":"0"}]
[null,383,{"$f":"'Pelacak Skor'!C386&COUNTIF('Pelacak Skor'!$C$4:C386,'Pelacak Skor'!C386)","v":"0"}]
[null,384,{"$f":"'Pelacak Skor'!C387&COUNTIF('Pelacak Skor'!$C$4:C387,'Pelacak Skor'!C387)","v":"0"}]
[null,385,{"$f":"'Pelacak Skor'!C388&COUNTIF('Pelacak Skor'!$C$4:C388,'Pelacak Skor'!C388)","v":"0"}]
[null,386,{"$f":"'Pelacak Skor'!C389&COUNTIF('Pelacak Skor'!$C$4:C389,'Pelacak Skor'!C389)","v":"0"}]
[null,387,{"$f":"'Pelacak Skor'!C390&COUNTIF('Pelacak Skor'!$C$4:C390,'Pelacak Skor'!C390)","v":"0"}]
[null,388,{"$f":"'Pelacak Skor'!C391&COUNTIF('Pelacak Skor'!$C$4:C391,'Pelacak Skor'!C391)","v":"0"}]
[null,389,{"$f":"'Pelacak Skor'!C392&COUNTIF('Pelacak Skor'!$C$4:C392,'Pelacak Skor'!C392)","v":"0"}]
[null,390,{"$f":"'Pelacak Skor'!C393&COUNTIF('Pelacak Skor'!$C$4:C393,'Pelacak Skor'!C393)","v":"0"}]
[null,391,{"$f":"'Pelacak Skor'!C394&COUNTIF('Pelacak Skor'!$C$4:C394,'Pelacak Skor'!C394)","v":"0"}]
[null,392,{"$f":"'Pelacak Skor'!C395&COUNTIF('Pelacak Skor'!$C$4:C395,'Pelacak Skor'!C395)","v":"0"}]
[null,393,{"$f":"'Pelacak Skor'!C396&COUNTIF('Pelacak Skor'!$C$4:C396,'Pelacak Skor'!C396)","v":"0"}]
[null,394,{"$f":"'Pelacak Skor'!C397&COUNTIF('Pelacak Skor'!$C$4:C397,'Pelacak Skor'!C397)","v":"0"}]
[null,395,{"$f":"'Pelacak Skor'!C398&COUNTIF('Pelacak Skor'!$C$4:C398,'Pelacak Skor'!C398)","v":"0"}]
[null,396,{"$f":"'Pelacak Skor'!C399&COUNTIF('Pelacak Skor'!$C$4:C399,'Pelacak Skor'!C399)","v":"0"}]
[null,397,{"$f":"'Pelacak Skor'!C400&COUNTIF('Pelacak Skor'!$C$4:C400,'Pelacak Skor'!C400)","v":"0"}]
[null,398,{"$f":"'Pelacak Skor'!C401&COUNTIF('Pelacak Skor'!$C$4:C401,'Pelacak Skor'!C401)","v":"0"}]
[null,399,{"$f":"'Pelacak Skor'!C402&COUNTIF('Pelacak Skor'!$C$4:C402,'Pelacak Skor'!C402)","v":"0"}]
[null,400,{"$f":"'Pelacak Skor'!C403&COUNTIF('Pelacak Skor'!$C$4:C403,'Pelacak Skor'!C403)","v":"0"}]
[null,401,{"$f":"'Pelacak Skor'!C404&COUNTIF('Pelacak Skor'!$C$4:C404,'Pelacak Skor'!C404)","v":"0"}]
[null,402,{"$f":"'Pelacak Skor'!C405&COUNTIF('Pelacak Skor'!$C$4:C405,'Pelacak Skor'!C405)","v":"0"}]
[null,403,{"$f":"'Pelacak Skor'!C406&COUNTIF('Pelacak Skor'!$C$4:C406,'Pelacak Skor'!C406)","v":"0"}]
[null,404,{"$f":"'Pelacak Skor'!C407&COUNTIF('Pelacak Skor'!$C$4:C407,'Pelacak Skor'!C407)","v":"0"}]
[null,405,{"$f":"'Pelacak Skor'!C408&COUNTIF('Pelacak Skor'!$C$4:C408,'Pelacak Skor'!C408)","v":"0"}]
[null,406,{"$f":"'Pelacak Skor'!C409&COUNTIF('Pelacak Skor'!$C$4:C409,'Pelacak Skor'!C409)","v":"0"}]
[null,407,{"$f":"'Pelacak Skor'!C410&COUNTIF('Pelacak Skor'!$C$4:C410,'Pelacak Skor'!C410)","v":"0"}]
[null,408,{"$f":"'Pelacak Skor'!C411&COUNTIF('Pelacak Skor'!$C$4:C411,'Pelacak Skor'!C411)","v":"0"}]
[null,409,{"$f":"'Pelacak Skor'!C412&COUNTIF('Pelacak Skor'!$C$4:C412,'Pelacak Skor'!C412)","v":"0"}]
[null,410,{"$f":"'Pelacak Skor'!C413&COUNTIF('Pelacak Skor'!$C$4:C413,'Pelacak Skor'!C413)","v":"0"}]
[null,411,{"$f":"'Pelacak Skor'!C414&COUNTIF('Pelacak Skor'!$C$4:C414,'Pelacak Skor'!C414)","v":"0"}]
[null,412,{"$f":"'Pelacak Skor'!C415&COUNTIF('Pelacak Skor'!$C$4:C415,'Pelacak Skor'!C415)","v":"0"}]
[null,413,{"$f":"'Pelacak Skor'!C416&COUNTIF('Pelacak Skor'!$C$4:C416,'Pelacak Skor'!C416)","v":"0"}]
[null,414,{"$f":"'Pelacak Skor'!C417&COUNTIF('Pelacak Skor'!$C$4:C417,'Pelacak Skor'!C417)","v":"0"}]
[null,415,{"$f":"'Pelacak Skor'!C418&COUNTIF('Pelacak Skor'!$C$4:C418,'Pelacak Skor'!C418)","v":"0"}]
[null,416,{"$f":"'Pelacak Skor'!C419&COUNTIF('Pelacak Skor'!$C$4:C419,'Pelacak Skor'!C419)","v":"0"}]
[null,417,{"$f":"'Pelacak Skor'!C420&COUNTIF('Pelacak Skor'!$C$4:C420,'Pelacak Skor'!C420)","v":"0"}]
[null,418,{"$f":"'Pelacak Skor'!C421&COUNTIF('Pelacak Skor'!$C$4:C421,'Pelacak Skor'!C421)","v":"0"}]
[null,419,{"$f":"'Pelacak Skor'!C422&COUNTIF('Pelacak Skor'!$C$4:C422,'Pelacak Skor'!C422)","v":"0"}]
[null,420,{"$f":"'Pelacak Skor'!C423&COUNTIF('Pelacak Skor'!$C$4:C423,'Pelacak Skor'!C423)","v":"0"}]
[null,421,{"$f":"'Pelacak Skor'!C424&COUNTIF('Pelacak Skor'!$C$4:C424,'Pelacak Skor'!C424)","v":"0"}]
[null,422,{"$f":"'Pelacak Skor'!C425&COUNTIF('Pelacak Skor'!$C$4:C425,'Pelacak Skor'!C425)","v":"0"}]
[null,423,{"$f":"'Pelacak Skor'!C426&COUNTIF('Pelacak Skor'!$C$4:C426,'Pelacak Skor'!C426)","v":"0"}]
[null,424,{"$f":"'Pelacak Skor'!C427&COUNTIF('Pelacak Skor'!$C$4:C427,'Pelacak Skor'!C427)","v":"0"}]
[null,425,{"$f":"'Pelacak Skor'!C428&COUNTIF('Pelacak Skor'!$C$4:C428,'Pelacak Skor'!C428)","v":"0"}]
[null,426,{"$f":"'Pelacak Skor'!C429&COUNTIF('Pelacak Skor'!$C$4:C429,'Pelacak Skor'!C429)","v":"0"}]
[null,427,{"$f":"'Pelacak Skor'!C430&COUNTIF('Pelacak Skor'!$C$4:C430,'Pelacak Skor'!C430)","v":"0"}]
[null,428,{"$f":"'Pelacak Skor'!C431&COUNTIF('Pelacak Skor'!$C$4:C431,'Pelacak Skor'!C431)","v":"0"}]
[null,429,{"$f":"'Pelacak Skor'!C432&COUNTIF('Pelacak Skor'!$C$4:C432,'Pelacak Skor'!C432)","v":"0"}]
[null,430,{"$f":"'Pelacak Skor'!C433&COUNTIF('Pelacak Skor'!$C$4:C433,'Pelacak Skor'!C433)","v":"0"}]
[null,431,{"$f":"'Pelacak Skor'!C434&COUNTIF('Pelacak Skor'!$C$4:C434,'Pelacak Skor'!C434)","v":"0"}]
[null,432,{"$f":"'Pelacak Skor'!C435&COUNTIF('Pelacak Skor'!$C$4:C435,'Pelacak Skor'!C435)","v":"0"}]
[null,433,{"$f":"'Pelacak Skor'!C436&COUNTIF('Pelacak Skor'!$C$4:C436,'Pelacak Skor'!C436)","v":"0"}]
[null,434,{"$f":"'Pelacak Skor'!C437&COUNTIF('Pelacak Skor'!$C$4:C437,'Pelacak Skor'!C437)","v":"0"}]
[null,435,{"$f":"'Pelacak Skor'!C438&COUNTIF('Pelacak Skor'!$C$4:C438,'Pelacak Skor'!C438)","v":"0"}]
[null,436,{"$f":"'Pelacak Skor'!C439&COUNTIF('Pelacak Skor'!$C$4:C439,'Pelacak Skor'!C439)","v":"0"}]
[null,437,{"$f":"'Pelacak Skor'!C440&COUNTIF('Pelacak Skor'!$C$4:C440,'Pelacak Skor'!C440)","v":"0"}]
[null,438,{"$f":"'Pelacak Skor'!C441&COUNTIF('Pelacak Skor'!$C$4:C441,'Pelacak Skor'!C441)","v":"0"}]
[null,439,{"$f":"'Pelacak Skor'!C442&COUNTIF('Pelacak Skor'!$C$4:C442,'Pelacak Skor'!C442)","v":"0"}]
[null,440,{"$f":"'Pelacak Skor'!C443&COUNTIF('Pelacak Skor'!$C$4:C443,'Pelacak Skor'!C443)","v":"0"}]
[null,441,{"$f":"'Pelacak Skor'!C444&COUNTIF('Pelacak Skor'!$C$4:C444,'Pelacak Skor'!C444)","v":"0"}]
[null,442,{"$f":"'Pelacak Skor'!C445&COUNTIF('Pelacak Skor'!$C$4:C445,'Pelacak Skor'!C445)","v":"0"}]
[null,443,{"$f":"'Pelacak Skor'!C446&COUNTIF('Pelacak Skor'!$C$4:C446,'Pelacak Skor'!C446)","v":"0"}]
[null,444,{"$f":"'Pelacak Skor'!C447&COUNTIF('Pelacak Skor'!$C$4:C447,'Pelacak Skor'!C447)","v":"0"}]
[null,445,{"$f":"'Pelacak Skor'!C448&COUNTIF('Pelacak Skor'!$C$4:C448,'Pelacak Skor'!C448)","v":"0"}]
[null,446,{"$f":"'Pelacak Skor'!C449&COUNTIF('Pelacak Skor'!$C$4:C449,'Pelacak Skor'!C449)","v":"0"}]
[null,447,{"$f":"'Pelacak Skor'!C450&COUNTIF('Pelacak Skor'!$C$4:C450,'Pelacak Skor'!C450)","v":"0"}]
[null,448,{"$f":"'Pelacak Skor'!C451&COUNTIF('Pelacak Skor'!$C$4:C451,'Pelacak Skor'!C451)","v":"0"}]
[null,449,{"$f":"'Pelacak Skor'!C452&COUNTIF('Pelacak Skor'!$C$4:C452,'Pelacak Skor'!C452)","v":"0"}]
[null,450,{"$f":"'Pelacak Skor'!C453&COUNTIF('Pelacak Skor'!$C$4:C453,'Pelacak Skor'!C453)","v":"0"}]
[null,451,{"$f":"'Pelacak Skor'!C454&COUNTIF('Pelacak Skor'!$C$4:C454,'Pelacak Skor'!C454)","v":"0"}]
[null,452,{"$f":"'Pelacak Skor'!C455&COUNTIF('Pelacak Skor'!$C$4:C455,'Pelacak Skor'!C455)","v":"0"}]
[null,453,{"$f":"'Pelacak Skor'!C456&COUNTIF('Pelacak Skor'!$C$4:C456,'Pelacak Skor'!C456)","v":"0"}]
[null,454,{"$f":"'Pelacak Skor'!C457&COUNTIF('Pelacak Skor'!$C$4:C457,'Pelacak Skor'!C457)","v":"0"}]
[null,455,{"$f":"'Pelacak Skor'!C458&COUNTIF('Pelacak Skor'!$C$4:C458,'Pelacak Skor'!C458)","v":"0"}]
[null,456,{"$f":"'Pelacak Skor'!C459&COUNTIF('Pelacak Skor'!$C$4:C459,'Pelacak Skor'!C459)","v":"0"}]
[null,457,{"$f":"'Pelacak Skor'!C460&COUNTIF('Pelacak Skor'!$C$4:C460,'Pelacak Skor'!C460)","v":"0"}]
[null,458,{"$f":"'Pelacak Skor'!C461&COUNTIF('Pelacak Skor'!$C$4:C461,'Pelacak Skor'!C461)","v":"0"}]
[null,459,{"$f":"'Pelacak Skor'!C462&COUNTIF('Pelacak Skor'!$C$4:C462,'Pelacak Skor'!C462)","v":"0"}]
[null,460,{"$f":"'Pelacak Skor'!C463&COUNTIF('Pelacak Skor'!$C$4:C463,'Pelacak Skor'!C463)","v":"0"}]
[null,461,{"$f":"'Pelacak Skor'!C464&COUNTIF('Pelacak Skor'!$C$4:C464,'Pelacak Skor'!C464)","v":"0"}]
[null,462,{"$f":"'Pelacak Skor'!C465&COUNTIF('Pelacak Skor'!$C$4:C465,'Pelacak Skor'!C465)","v":"0"}]
[null,463,{"$f":"'Pelacak Skor'!C466&COUNTIF('Pelacak Skor'!$C$4:C466,'Pelacak Skor'!C466)","v":"0"}]
[null,464,{"$f":"'Pelacak Skor'!C467&COUNTIF('Pelacak Skor'!$C$4:C467,'Pelacak Skor'!C467)","v":"0"}]
[null,465,{"$f":"'Pelacak Skor'!C468&COUNTIF('Pelacak Skor'!$C$4:C468,'Pelacak Skor'!C468)","v":"0"}]
[null,466,{"$f":"'Pelacak Skor'!C469&COUNTIF('Pelacak Skor'!$C$4:C469,'Pelacak Skor'!C469)","v":"0"}]
[null,467,{"$f":"'Pelacak Skor'!C470&COUNTIF('Pelacak Skor'!$C$4:C470,'Pelacak Skor'!C470)","v":"0"}]
[null,468,{"$f":"'Pelacak Skor'!C471&COUNTIF('Pelacak Skor'!$C$4:C471,'Pelacak Skor'!C471)","v":"0"}]
[null,469,{"$f":"'Pelacak Skor'!C472&COUNTIF('Pelacak Skor'!$C$4:C472,'Pelacak Skor'!C472)","v":"0"}]
[null,470,{"$f":"'Pelacak Skor'!C473&COUNTIF('Pelacak Skor'!$C$4:C473,'Pelacak Skor'!C473)","v":"0"}]
[null,471,{"$f":"'Pelacak Skor'!C474&COUNTIF('Pelacak Skor'!$C$4:C474,'Pelacak Skor'!C474)","v":"0"}]
[null,472,{"$f":"'Pelacak Skor'!C475&COUNTIF('Pelacak Skor'!$C$4:C475,'Pelacak Skor'!C475)","v":"0"}]
[null,473,{"$f":"'Pelacak Skor'!C476&COUNTIF('Pelacak Skor'!$C$4:C476,'Pelacak Skor'!C476)","v":"0"}]
[null,474,{"$f":"'Pelacak Skor'!C477&COUNTIF('Pelacak Skor'!$C$4:C477,'Pelacak Skor'!C477)","v":"0"}]
[null,475,{"$f":"'Pelacak Skor'!C478&COUNTIF('Pelacak Skor'!$C$4:C478,'Pelacak Skor'!C478)","v":"0"}]
[null,476,{"$f":"'Pelacak Skor'!C479&COUNTIF('Pelacak Skor'!$C$4:C479,'Pelacak Skor'!C479)","v":"0"}]
[null,477,{"$f":"'Pelacak Skor'!C480&COUNTIF('Pelacak Skor'!$C$4:C480,'Pelacak Skor'!C480)","v":"0"}]
[null,478,{"$f":"'Pelacak Skor'!C481&COUNTIF('Pelacak Skor'!$C$4:C481,'Pelacak Skor'!C481)","v":"0"}]
[null,479,{"$f":"'Pelacak Skor'!C482&COUNTIF('Pelacak Skor'!$C$4:C482,'Pelacak Skor'!C482)","v":"0"}]
[null,480,{"$f":"'Pelacak Skor'!C483&COUNTIF('Pelacak Skor'!$C$4:C483,'Pelacak Skor'!C483)","v":"0"}]
[null,481,{"$f":"'Pelacak Skor'!C484&COUNTIF('Pelacak Skor'!$C$4:C484,'Pelacak Skor'!C484)","v":"0"}]
[null,482,{"$f":"'Pelacak Skor'!C485&COUNTIF('Pelacak Skor'!$C$4:C485,'Pelacak Skor'!C485)","v":"0"}]
[null,483,{"$f":"'Pelacak Skor'!C486&COUNTIF('Pelacak Skor'!$C$4:C486,'Pelacak Skor'!C486)","v":"0"}]
[null,484,{"$f":"'Pelacak Skor'!C487&COUNTIF('Pelacak Skor'!$C$4:C487,'Pelacak Skor'!C487)","v":"0"}]
[null,485,{"$f":"'Pelacak Skor'!C488&COUNTIF('Pelacak Skor'!$C$4:C488,'Pelacak Skor'!C488)","v":"0"}]
[null,486,{"$f":"'Pelacak Skor'!C489&COUNTIF('Pelacak Skor'!$C$4:C489,'Pelacak Skor'!C489)","v":"0"}]
[null,487,{"$f":"'Pelacak Skor'!C490&COUNTIF('Pelacak Skor'!$C$4:C490,'Pelacak Skor'!C490)","v":"0"}]
[null,488,{"$f":"'Pelacak Skor'!C491&COUNTIF('Pelacak Skor'!$C$4:C491,'Pelacak Skor'!C491)","v":"0"}]
[null,489,{"$f":"'Pelacak Skor'!C492&COUNTIF('Pelacak Skor'!$C$4:C492,'Pelacak Skor'!C492)","v":"0"}]
[null,490,{"$f":"'Pelacak Skor'!C493&COUNTIF('Pelacak Skor'!$C$4:C493,'Pelacak Skor'!C493)","v":"0"}]
[null,491,{"$f":"'Pelacak Skor'!C494&COUNTIF('Pelacak Skor'!$C$4:C494,'Pelacak Skor'!C494)","v":"0"}]
[null,492,{"$f":"'Pelacak Skor'!C495&COUNTIF('Pelacak Skor'!$C$4:C495,'Pelacak Skor'!C495)","v":"0"}]
[null,493,{"$f":"'Pelacak Skor'!C496&COUNTIF('Pelacak Skor'!$C$4:C496,'Pelacak Skor'!C496)","v":"0"}]
[null,494,{"$f":"'Pelacak Skor'!C497&COUNTIF('Pelacak Skor'!$C$4:C497,'Pelacak Skor'!C497)","v":"0"}]
[null,495,{"$f":"'Pelacak Skor'!C498&COUNTIF('Pelacak Skor'!$C$4:C498,'Pelacak Skor'!C498)","v":"0"}]
[null,496,{"$f":"'Pelacak Skor'!C499&COUNTIF('Pelacak Skor'!$C$4:C499,'Pelacak Skor'!C499)","v":"0"}]
[null,497,{"$f":"'Pelacak Skor'!C500&COUNTIF('Pelacak Skor'!$C$4:C500,'Pelacak Skor'!C500)","v":"0"}]
[null,498,{"$f":"'Pelacak Skor'!C501&COUNTIF('Pelacak Skor'!$C$4:C501,'Pelacak Skor'!C501)","v":"0"}]
[null,499,{"$f":"'Pelacak Skor'!C502&COUNTIF('Pelacak Skor'!$C$4:C502,'Pelacak Skor'!C502)","v":"0"}]
[null,500,{"$f":"'Pelacak Skor'!C503&COUNTIF('Pelacak Skor'!$C$4:C503,'Pelacak Skor'!C503)","v":"0"}]
[null,501,{"$f":"'Pelacak Skor'!C504&COUNTIF('Pelacak Skor'!$C$4:C504,'Pelacak Skor'!C504)","v":"0"}]
[null,502,{"$f":"'Pelacak Skor'!C505&COUNTIF('Pelacak Skor'!$C$4:C505,'Pelacak Skor'!C505)","v":"0"}]
[null,503,{"$f":"'Pelacak Skor'!C506&COUNTIF('Pelacak Skor'!$C$4:C506,'Pelacak Skor'!C506)","v":"0"}]
[null,504,{"$f":"'Pelacak Skor'!C507&COUNTIF('Pelacak Skor'!$C$4:C507,'Pelacak Skor'!C507)","v":"0"}]
[null,505,{"$f":"'Pelacak Skor'!C508&COUNTIF('Pelacak Skor'!$C$4:C508,'Pelacak Skor'!C508)","v":"0"}]
[null,506,{"$f":"'Pelacak Skor'!C509&COUNTIF('Pelacak Skor'!$C$4:C509,'Pelacak Skor'!C509)","v":"0"}]
[null,507,{"$f":"'Pelacak Skor'!C510&COUNTIF('Pelacak Skor'!$C$4:C510,'Pelacak Skor'!C510)","v":"0"}]
[null,508,{"$f":"'Pelacak Skor'!C511&COUNTIF('Pelacak Skor'!$C$4:C511,'Pelacak Skor'!C511)","v":"0"}]
[null,509,{"$f":"'Pelacak Skor'!C512&COUNTIF('Pelacak Skor'!$C$4:C512,'Pelacak Skor'!C512)","v":"0"}]
[null,510,{"$f":"'Pelacak Skor'!C513&COUNTIF('Pelacak Skor'!$C$4:C513,'Pelacak Skor'!C513)","v":"0"}]
[null,511,{"$f":"'Pelacak Skor'!C514&COUNTIF('Pelacak Skor'!$C$4:C514,'Pelacak Skor'!C514)","v":"0"}]
[null,512,{"$f":"'Pelacak Skor'!C515&COUNTIF('Pelacak Skor'!$C$4:C515,'Pelacak Skor'!C515)","v":"0"}]
[null,513,{"$f":"'Pelacak Skor'!C516&COUNTIF('Pelacak Skor'!$C$4:C516,'Pelacak Skor'!C516)","v":"0"}]
[null,514,{"$f":"'Pelacak Skor'!C517&COUNTIF('Pelacak Skor'!$C$4:C517,'Pelacak Skor'!C517)","v":"0"}]
[null,515,{"$f":"'Pelacak Skor'!C518&COUNTIF('Pelacak Skor'!$C$4:C518,'Pelacak Skor'!C518)","v":"0"}]
[null,516,{"$f":"'Pelacak Skor'!C519&COUNTIF('Pelacak Skor'!$C$4:C519,'Pelacak Skor'!C519)","v":"0"}]
[null,517,{"$f":"'Pelacak Skor'!C520&COUNTIF('Pelacak Skor'!$C$4:C520,'Pelacak Skor'!C520)","v":"0"}]
[null,518,{"$f":"'Pelacak Skor'!C521&COUNTIF('Pelacak Skor'!$C$4:C521,'Pelacak Skor'!C521)","v":"0"}]
[null,519,{"$f":"'Pelacak Skor'!C522&COUNTIF('Pelacak Skor'!$C$4:C522,'Pelacak Skor'!C522)","v":"0"}]
[null,520,{"$f":"'Pelacak Skor'!C523&COUNTIF('Pelacak Skor'!$C$4:C523,'Pelacak Skor'!C523)","v":"0"}]
[null,521,{"$f":"'Pelacak Skor'!C524&COUNTIF('Pelacak Skor'!$C$4:C524,'Pelacak Skor'!C524)","v":"0"}]
[null,522,{"$f":"'Pelacak Skor'!C525&COUNTIF('Pelacak Skor'!$C$4:C525,'Pelacak Skor'!C525)","v":"0"}]
[null,523,{"$f":"'Pelacak Skor'!C526&COUNTIF('Pelacak Skor'!$C$4:C526,'Pelacak Skor'!C526)","v":"0"}]
[null,524,{"$f":"'Pelacak Skor'!C527&COUNTIF('Pelacak Skor'!$C$4:C527,'Pelacak Skor'!C527)","v":"0"}]
[null,525,{"$f":"'Pelacak Skor'!C528&COUNTIF('Pelacak Skor'!$C$4:C528,'Pelacak Skor'!C528)","v":"0"}]
[null,526,{"$f":"'Pelacak Skor'!C529&COUNTIF('Pelacak Skor'!$C$4:C529,'Pelacak Skor'!C529)","v":"0"}]
[null,527,{"$f":"'Pelacak Skor'!C530&COUNTIF('Pelacak Skor'!$C$4:C530,'Pelacak Skor'!C530)","v":"0"}]
[null,528,{"$f":"'Pelacak Skor'!C531&COUNTIF('Pelacak Skor'!$C$4:C531,'Pelacak Skor'!C531)","v":"0"}]
[null,529,{"$f":"'Pelacak Skor'!C532&COUNTIF('Pelacak Skor'!$C$4:C532,'Pelacak Skor'!C532)","v":"0"}]
[null,530,{"$f":"'Pelacak Skor'!C533&COUNTIF('Pelacak Skor'!$C$4:C533,'Pelacak Skor'!C533)","v":"0"}]
[null,531,{"$f":"'Pelacak Skor'!C534&COUNTIF('Pelacak Skor'!$C$4:C534,'Pelacak Skor'!C534)","v":"0"}]
[null,532,{"$f":"'Pelacak Skor'!C535&COUNTIF('Pelacak Skor'!$C$4:C535,'Pelacak Skor'!C535)","v":"0"}]
[null,533,{"$f":"'Pelacak Skor'!C536&COUNTIF('Pelacak Skor'!$C$4:C536,'Pelacak Skor'!C536)","v":"0"}]
[null,534,{"$f":"'Pelacak Skor'!C537&COUNTIF('Pelacak Skor'!$C$4:C537,'Pelacak Skor'!C537)","v":"0"}]
[null,535,{"$f":"'Pelacak Skor'!C538&COUNTIF('Pelacak Skor'!$C$4:C538,'Pelacak Skor'!C538)","v":"0"}]
[null,536,{"$f":"'Pelacak Skor'!C539&COUNTIF('Pelacak Skor'!$C$4:C539,'Pelacak Skor'!C539)","v":"0"}]
[null,537,{"$f":"'Pelacak Skor'!C540&COUNTIF('Pelacak Skor'!$C$4:C540,'Pelacak Skor'!C540)","v":"0"}]
[null,538,{"$f":"'Pelacak Skor'!C541&COUNTIF('Pelacak Skor'!$C$4:C541,'Pelacak Skor'!C541)","v":"0"}]
[null,539,{"$f":"'Pelacak Skor'!C542&COUNTIF('Pelacak Skor'!$C$4:C542,'Pelacak Skor'!C542)","v":"0"}]
[null,540,{"$f":"'Pelacak Skor'!C543&COUNTIF('Pelacak Skor'!$C$4:C543,'Pelacak Skor'!C543)","v":"0"}]
[null,541,{"$f":"'Pelacak Skor'!C544&COUNTIF('Pelacak Skor'!$C$4:C544,'Pelacak Skor'!C544)","v":"0"}]
[null,542,{"$f":"'Pelacak Skor'!C545&COUNTIF('Pelacak Skor'!$C$4:C545,'Pelacak Skor'!C545)","v":"0"}]
[null,543,{"$f":"'Pelacak Skor'!C546&COUNTIF('Pelacak Skor'!$C$4:C546,'Pelacak Skor'!C546)","v":"0"}]
[null,544,{"$f":"'Pelacak Skor'!C547&COUNTIF('Pelacak Skor'!$C$4:C547,'Pelacak Skor'!C547)","v":"0"}]
[null,545,{"$f":"'Pelacak Skor'!C548&COUNTIF('Pelacak Skor'!$C$4:C548,'Pelacak Skor'!C548)","v":"0"}]
[null,546,{"$f":"'Pelacak Skor'!C549&COUNTIF('Pelacak Skor'!$C$4:C549,'Pelacak Skor'!C549)","v":"0"}]
[null,547,{"$f":"'Pelacak Skor'!C550&COUNTIF('Pelacak Skor'!$C$4:C550,'Pelacak Skor'!C550)","v":"0"}]
[null,548,{"$f":"'Pelacak Skor'!C551&COUNTIF('Pelacak Skor'!$C$4:C551,'Pelacak Skor'!C551)","v":"0"}]
[null,549,{"$f":"'Pelacak Skor'!C552&COUNTIF('Pelacak Skor'!$C$4:C552,'Pelacak Skor'!C552)","v":"0"}]
[null,550,{"$f":"'Pelacak Skor'!C553&COUNTIF('Pelacak Skor'!$C$4:C553,'Pelacak Skor'!C553)","v":"0"}]
[null,551,{"$f":"'Pelacak Skor'!C554&COUNTIF('Pelacak Skor'!$C$4:C554,'Pelacak Skor'!C554)","v":"0"}]
[null,552,{"$f":"'Pelacak Skor'!C555&COUNTIF('Pelacak Skor'!$C$4:C555,'Pelacak Skor'!C555)","v":"0"}]
[null,553,{"$f":"'Pelacak Skor'!C556&COUNTIF('Pelacak Skor'!$C$4:C556,'Pelacak Skor'!C556)","v":"0"}]
[null,554,{"$f":"'Pelacak Skor'!C557&COUNTIF('Pelacak Skor'!$C$4:C557,'Pelacak Skor'!C557)","v":"0"}]
[null,555,{"$f":"'Pelacak Skor'!C558&COUNTIF('Pelacak Skor'!$C$4:C558,'Pelacak Skor'!C558)","v":"0"}]
[null,556,{"$f":"'Pelacak Skor'!C559&COUNTIF('Pelacak Skor'!$C$4:C559,'Pelacak Skor'!C559)","v":"0"}]
[null,557,{"$f":"'Pelacak Skor'!C560&COUNTIF('Pelacak Skor'!$C$4:C560,'Pelacak Skor'!C560)","v":"0"}]
[null,558,{"$f":"'Pelacak Skor'!C561&COUNTIF('Pelacak Skor'!$C$4:C561,'Pelacak Skor'!C561)","v":"0"}]
[null,559,{"$f":"'Pelacak Skor'!C562&COUNTIF('Pelacak Skor'!$C$4:C562,'Pelacak Skor'!C562)","v":"0"}]
[null,560,{"$f":"'Pelacak Skor'!C563&COUNTIF('Pelacak Skor'!$C$4:C563,'Pelacak Skor'!C563)","v":"0"}]
[null,561,{"$f":"'Pelacak Skor'!C564&COUNTIF('Pelacak Skor'!$C$4:C564,'Pelacak Skor'!C564)","v":"0"}]
[null,562,{"$f":"'Pelacak Skor'!C565&COUNTIF('Pelacak Skor'!$C$4:C565,'Pelacak Skor'!C565)","v":"0"}]
[null,563,{"$f":"'Pelacak Skor'!C566&COUNTIF('Pelacak Skor'!$C$4:C566,'Pelacak Skor'!C566)","v":"0"}]
[null,564,{"$f":"'Pelacak Skor'!C567&COUNTIF('Pelacak Skor'!$C$4:C567,'Pelacak Skor'!C567)","v":"0"}]
[null,565,{"$f":"'Pelacak Skor'!C568&COUNTIF('Pelacak Skor'!$C$4:C568,'Pelacak Skor'!C568)","v":"0"}]
[null,566,{"$f":"'Pelacak Skor'!C569&COUNTIF('Pelacak Skor'!$C$4:C569,'Pelacak Skor'!C569)","v":"0"}]
[null,567,{"$f":"'Pelacak Skor'!C570&COUNTIF('Pelacak Skor'!$C$4:C570,'Pelacak Skor'!C570)","v":"0"}]
[null,568,{"$f":"'Pelacak Skor'!C571&COUNTIF('Pelacak Skor'!$C$4:C571,'Pelacak Skor'!C571)","v":"0"}]
[null,569,{"$f":"'Pelacak Skor'!C572&COUNTIF('Pelacak Skor'!$C$4:C572,'Pelacak Skor'!C572)","v":"0"}]
[null,570,{"$f":"'Pelacak Skor'!C573&COUNTIF('Pelacak Skor'!$C$4:C573,'Pelacak Skor'!C573)","v":"0"}]
[null,571,{"$f":"'Pelacak Skor'!C574&COUNTIF('Pelacak Skor'!$C$4:C574,'Pelacak Skor'!C574)","v":"0"}]
[null,572,{"$f":"'Pelacak Skor'!C575&COUNTIF('Pelacak Skor'!$C$4:C575,'Pelacak Skor'!C575)","v":"0"}]
[null,573,{"$f":"'Pelacak Skor'!C576&COUNTIF('Pelacak Skor'!$C$4:C576,'Pelacak Skor'!C576)","v":"0"}]
[null,574,{"$f":"'Pelacak Skor'!C577&COUNTIF('Pelacak Skor'!$C$4:C577,'Pelacak Skor'!C577)","v":"0"}]
[null,575,{"$f":"'Pelacak Skor'!C578&COUNTIF('Pelacak Skor'!$C$4:C578,'Pelacak Skor'!C578)","v":"0"}]
[null,576,{"$f":"'Pelacak Skor'!C579&COUNTIF('Pelacak Skor'!$C$4:C579,'Pelacak Skor'!C579)","v":"0"}]
[null,577,{"$f":"'Pelacak Skor'!C580&COUNTIF('Pelacak Skor'!$C$4:C580,'Pelacak Skor'!C580)","v":"0"}]
[null,578,{"$f":"'Pelacak Skor'!C581&COUNTIF('Pelacak Skor'!$C$4:C581,'Pelacak Skor'!C581)","v":"0"}]
[null,579,{"$f":"'Pelacak Skor'!C582&COUNTIF('Pelacak Skor'!$C$4:C582,'Pelacak Skor'!C582)","v":"0"}]
[null,580,{"$f":"'Pelacak Skor'!C583&COUNTIF('Pelacak Skor'!$C$4:C583,'Pelacak Skor'!C583)","v":"0"}]
[null,581,{"$f":"'Pelacak Skor'!C584&COUNTIF('Pelacak Skor'!$C$4:C584,'Pelacak Skor'!C584)","v":"0"}]
[null,582,{"$f":"'Pelacak Skor'!C585&COUNTIF('Pelacak Skor'!$C$4:C585,'Pelacak Skor'!C585)","v":"0"}]
[null,583,{"$f":"'Pelacak Skor'!C586&COUNTIF('Pelacak Skor'!$C$4:C586,'Pelacak Skor'!C586)","v":"0"}]
[null,584,{"$f":"'Pelacak Skor'!C587&COUNTIF('Pelacak Skor'!$C$4:C587,'Pelacak Skor'!C587)","v":"0"}]
[null,585,{"$f":"'Pelacak Skor'!C588&COUNTIF('Pelacak Skor'!$C$4:C588,'Pelacak Skor'!C588)","v":"0"}]
[null,586,{"$f":"'Pelacak Skor'!C589&COUNTIF('Pelacak Skor'!$C$4:C589,'Pelacak Skor'!C589)","v":"0"}]
[null,587,{"$f":"'Pelacak Skor'!C590&COUNTIF('Pelacak Skor'!$C$4:C590,'Pelacak Skor'!C590)","v":"0"}]
[null,588,{"$f":"'Pelacak Skor'!C591&COUNTIF('Pelacak Skor'!$C$4:C591,'Pelacak Skor'!C591)","v":"0"}]
[null,589,{"$f":"'Pelacak Skor'!C592&COUNTIF('Pelacak Skor'!$C$4:C592,'Pelacak Skor'!C592)","v":"0"}]
[null,590,{"$f":"'Pelacak Skor'!C593&COUNTIF('Pelacak Skor'!$C$4:C593,'Pelacak Skor'!C593)","v":"0"}]
[null,591,{"$f":"'Pelacak Skor'!C594&COUNTIF('Pelacak Skor'!$C$4:C594,'Pelacak Skor'!C594)","v":"0"}]
[null,592,{"$f":"'Pelacak Skor'!C595&COUNTIF('Pelacak Skor'!$C$4:C595,'Pelacak Skor'!C595)","v":"0"}]
[null,593,{"$f":"'Pelacak Skor'!C596&COUNTIF('Pelacak Skor'!$C$4:C596,'Pelacak Skor'!C596)","v":"0"}]
[null,594,{"$f":"'Pelacak Skor'!C597&COUNTIF('Pelacak Skor'!$C$4:C597,'Pelacak Skor'!C597)","v":"0"}]
[null,595,{"$f":"'Pelacak Skor'!C598&COUNTIF('Pelacak Skor'!$C$4:C598,'Pelacak Skor'!C598)","v":"0"}]
[null,596,{"$f":"'Pelacak Skor'!C599&COUNTIF('Pelacak Skor'!$C$4:C599,'Pelacak Skor'!C599)","v":"0"}]
[null,597,{"$f":"'Pelacak Skor'!C600&COUNTIF('Pelacak Skor'!$C$4:C600,'Pelacak Skor'!C600)","v":"0"}]
[null,598,{"$f":"'Pelacak Skor'!C601&COUNTIF('Pelacak Skor'!$C$4:C601,'Pelacak Skor'!C601)","v":"0"}]
[null,599,{"$f":"'Pelacak Skor'!C602&COUNTIF('Pelacak Skor'!$C$4:C602,'Pelacak Skor'!C602)","v":"0"}]
[null,600,{"$f":"'Pelacak Skor'!C603&COUNTIF('Pelacak Skor'!$C$4:C603,'Pelacak Skor'!C603)","v":"0"}]
[null,601,{"$f":"'Pelacak Skor'!C604&COUNTIF('Pelacak Skor'!$C$4:C604,'Pelacak Skor'!C604)","v":"0"}]
[null,602,{"$f":"'Pelacak Skor'!C605&COUNTIF('Pelacak Skor'!$C$4:C605,'Pelacak Skor'!C605)","v":"0"}]
[null,603,{"$f":"'Pelacak Skor'!C606&COUNTIF('Pelacak Skor'!$C$4:C606,'Pelacak Skor'!C606)","v":"0"}]
[null,604,{"$f":"'Pelacak Skor'!C607&COUNTIF('Pelacak Skor'!$C$4:C607,'Pelacak Skor'!C607)","v":"0"}]
[null,605,{"$f":"'Pelacak Skor'!C608&COUNTIF('Pelacak Skor'!$C$4:C608,'Pelacak Skor'!C608)","v":"0"}]
[null,606,{"$f":"'Pelacak Skor'!C609&COUNTIF('Pelacak Skor'!$C$4:C609,'Pelacak Skor'!C609)","v":"0"}]
[null,607,{"$f":"'Pelacak Skor'!C610&COUNTIF('Pelacak Skor'!$C$4:C610,'Pelacak Skor'!C610)","v":"0"}]
[null,608,{"$f":"'Pelacak Skor'!C611&COUNTIF('Pelacak Skor'!$C$4:C611,'Pelacak Skor'!C611)","v":"0"}]
[null,609,{"$f":"'Pelacak Skor'!C612&COUNTIF('Pelacak Skor'!$C$4:C612,'Pelacak Skor'!C612)","v":"0"}]
[null,610,{"$f":"'Pelacak Skor'!C613&COUNTIF('Pelacak Skor'!$C$4:C613,'Pelacak Skor'!C613)","v":"0"}]
[null,611,{"$f":"'Pelacak Skor'!C614&COUNTIF('Pelacak Skor'!$C$4:C614,'Pelacak Skor'!C614)","v":"0"}]
[null,612,{"$f":"'Pelacak Skor'!C615&COUNTIF('Pelacak Skor'!$C$4:C615,'Pelacak Skor'!C615)","v":"0"}]
[null,613,{"$f":"'Pelacak Skor'!C616&COUNTIF('Pelacak Skor'!$C$4:C616,'Pelacak Skor'!C616)","v":"0"}]
[null,614,{"$f":"'Pelacak Skor'!C617&COUNTIF('Pelacak Skor'!$C$4:C617,'Pelacak Skor'!C617)","v":"0"}]
[null,615,{"$f":"'Pelacak Skor'!C618&COUNTIF('Pelacak Skor'!$C$4:C618,'Pelacak Skor'!C618)","v":"0"}]
[null,616,{"$f":"'Pelacak Skor'!C619&COUNTIF('Pelacak Skor'!$C$4:C619,'Pelacak Skor'!C619)","v":"0"}]
[null,617,{"$f":"'Pelacak Skor'!C620&COUNTIF('Pelacak Skor'!$C$4:C620,'Pelacak Skor'!C620)","v":"0"}]
[null,618,{"$f":"'Pelacak Skor'!C621&COUNTIF('Pelacak Skor'!$C$4:C621,'Pelacak Skor'!C621)","v":"0"}]
[null,619,{"$f":"'Pelacak Skor'!C622&COUNTIF('Pelacak Skor'!$C$4:C622,'Pelacak Skor'!C622)","v":"0"}]
[null,620,{"$f":"'Pelacak Skor'!C623&COUNTIF('Pelacak Skor'!$C$4:C623,'Pelacak Skor'!C623)","v":"0"}]
[null,621,{"$f":"'Pelacak Skor'!C624&COUNTIF('Pelacak Skor'!$C$4:C624,'Pelacak Skor'!C624)","v":"0"}]
[null,622,{"$f":"'Pelacak Skor'!C625&COUNTIF('Pelacak Skor'!$C$4:C625,'Pelacak Skor'!C625)","v":"0"}]
[null,623,{"$f":"'Pelacak Skor'!C626&COUNTIF('Pelacak Skor'!$C$4:C626,'Pelacak Skor'!C626)","v":"0"}]
[null,624,{"$f":"'Pelacak Skor'!C627&COUNTIF('Pelacak Skor'!$C$4:C627,'Pelacak Skor'!C627)","v":"0"}]
[null,625,{"$f":"'Pelacak Skor'!C628&COUNTIF('Pelacak Skor'!$C$4:C628,'Pelacak Skor'!C628)","v":"0"}]